{"text_format":"1","workbook":"xlsx","n_sheets":28,"sheets":["Accueil","Tableau de saisie","SJF","SJM","SSF","SSM","SVF","SVM","NJF","NJM","NSF","NSM","NVF","NVM","PJF","PJM","PSF","PSM","PVF","PVM","AJF","AJM","ASF","ASM","AVF","AVM","Catalogue","Tableau de données"],"not_rendered":{"charts":0,"images":1,"macros":1,"external_links":1,"defined_names":51,"comments":25,"pivot_tables":0},"unopened":[],"bounds":{"document_bytes":16777216,"sheet_cells":100000,"rows_first":2000,"rows_last":500,"rows_between":2000,"halvings":0,"cell_chars":16384,"cell_head_chars":4096},"cells_cut":0,"cells_raw":0,"read":"row_number_cap","date_system":"1900"}

{"sheet":"Accueil","index":0,"n_rows":21,"n_cols":7,"rows_kept":21,"cut":false,"hidden":false,"merged":[[22,3,22,9],[19,3,19,9],[17,3,18,5],[20,3,21,5],[0,0,0,11],[17,6,18,8],[20,6,21,8],[14,3,15,9],[16,3,16,9]]}
["ACCUEIL"]
[]
[]
[]
[]
[]
[]
[]
[]
[]
[]
[]
[]
[]
[null,null,null,"Choisir le lieu puis la date du show"]
[]
[]
[null,null,null,"Lieu",null,null,"Paris"]
[]
[]
[null,null,null,"Date",null,null,"2018-01-28"]

{"sheet":"Tableau de saisie","index":1,"n_rows":12,"n_cols":24,"rows_kept":12,"cut":false,"hidden":false,"merged":[]}
["N°","LIEU","DATE","CLASSE","CLASSE abr","CATEGORIE","CATEGORIE abr","AFFIXE","NOM","SEXE","DATE DE NAISSANCE","Complet","Année","Mois","Jours","Semaine","TYPE DE POIL","MARQUAGE","COULEUR","TYPE D'OREILLES","PÈRE","MERE","PROVENANCE","PROPRIETAIRE"]
[{"$f":"ROW()-1","v":1},"Paris","2018-02-01","Standard",{"$f":"LEFT(TabSaisie[[#This Row],[CLASSE]],1)","v":"S"},{"$f":"IF(TabSaisie[[#This Row],[Mois]]<3,\"\",IF(TabSaisie[[#This Row],[Mois]]<6,\"Junior \",IF(TabSaisie[[#This Row],[Mois]]<22,\"Sénior \",\"Vétéran \")))&LOWER(TabSaisie[[#This Row],[SEXE]])","v":"Vétéran mâle"},{"$f":"LEFT(TabSaisie[[#This Row],[CATEGORIE]],1)&LEFT(TabSaisie[[#This Row],[SEXE]],1)","v":"VM"},"DEL","Jack","Mâle","2012-01-01",{"$f":"DuréeEnClair(TabSaisie[[#This Row],[DATE]]-TabSaisie[[#This Row],[DATE DE NAISSANCE]])","v":"6 a 1 m 1 j "},{"$f":"DATEDIF(TabSaisie[[#This Row],[DATE DE NAISSANCE]],TabSaisie[[#This Row],[DATE]],\"y\")","v":6},{"$f":"DATEDIF(TabSaisie[[#This Row],[DATE DE NAISSANCE]],TabSaisie[[#This Row],[DATE]],\"m\")","v":73},{"$f":"TabSaisie[[#This Row],[DATE]]-TabSaisie[[#This Row],[DATE DE NAISSANCE]]","v":2223},{"$f":"ROUND(TabSaisie[[#This Row],[Jours]]/7,0)","v":318},"Lisse","Capé","Albinos","Dumbo","a","d","qdf","s"]
[2,"Marseille","2018-01-12","Standard",{"$f":"LEFT(TabSaisie[[#This Row],[CLASSE]],1)","v":"S"},{"$f":"IF(TabSaisie[[#This Row],[Mois]]<3,\"\",IF(TabSaisie[[#This Row],[Mois]]<6,\"Junior \",IF(TabSaisie[[#This Row],[Mois]]<22,\"Sénior \",\"Vétéran \")))&LOWER(TabSaisie[[#This Row],[SEXE]])","v":"Sénior mâle"},{"$f":"LEFT(TabSaisie[[#This Row],[CATEGORIE]],1)&LEFT(TabSaisie[[#This Row],[SEXE]],1)","v":"SM"},"DEL","John","Mâle","2017-06-25",{"$f":"DuréeEnClair(TabSaisie[[#This Row],[DATE]]-TabSaisie[[#This Row],[DATE DE NAISSANCE]])","v":"6 m 2 s 4 j "},{"$f":"DATEDIF(TabSaisie[[#This Row],[DATE DE NAISSANCE]],TabSaisie[[#This Row],[DATE]],\"y\")","v":0},{"$f":"DATEDIF(TabSaisie[[#This Row],[DATE DE NAISSANCE]],TabSaisie[[#This Row],[DATE]],\"m\")","v":6},{"$f":"TabSaisie[[#This Row],[DATE]]-TabSaisie[[#This Row],[DATE DE NAISSANCE]]","v":201},{"$f":"ROUND(TabSaisie[[#This Row],[Jours]]/7,0)","v":29},"Lisse","Berkshire","Bleu US","Standard","ze","f","dqsfh","sdh"]
[3,"Marseille","2018-01-14","Standard",{"$f":"LEFT(TabSaisie[[#This Row],[CLASSE]],1)","v":"S"},{"$f":"IF(TabSaisie[[#This Row],[Mois]]<3,\"\",IF(TabSaisie[[#This Row],[Mois]]<6,\"Junior \",IF(TabSaisie[[#This Row],[Mois]]<22,\"Sénior \",\"Vétéran \")))&LOWER(TabSaisie[[#This Row],[SEXE]])","v":"Vétéran femelle"},{"$f":"LEFT(TabSaisie[[#This Row],[CATEGORIE]],1)&LEFT(TabSaisie[[#This Row],[SEXE]],1)","v":"VF"},"DEL","Juliet","Femelle","2015-09-15",{"$f":"DuréeEnClair(TabSaisie[[#This Row],[DATE]]-TabSaisie[[#This Row],[DATE DE NAISSANCE]])","v":"2 a 3 m 4 s 2 j "},{"$f":"DATEDIF(TabSaisie[[#This Row],[DATE DE NAISSANCE]],TabSaisie[[#This Row],[DATE]],\"y\")","v":2},{"$f":"DATEDIF(TabSaisie[[#This Row],[DATE DE NAISSANCE]],TabSaisie[[#This Row],[DATE]],\"m\")","v":27},{"$f":"TabSaisie[[#This Row],[DATE]]-TabSaisie[[#This Row],[DATE DE NAISSANCE]]","v":852},{"$f":"ROUND(TabSaisie[[#This Row],[Jours]]/7,0)","v":122},"Rex","Husky Roan","Albinos","Standard","r","g","qdfh","sdjh"]
[4,"Paris","2018-01-28","Standard",{"$f":"LEFT(TabSaisie[[#This Row],[CLASSE]],1)","v":"S"},{"$f":"IF(TabSaisie[[#This Row],[Mois]]<3,\"\",IF(TabSaisie[[#This Row],[Mois]]<6,\"Junior \",IF(TabSaisie[[#This Row],[Mois]]<22,\"Sénior \",\"Vétéran \")))&LOWER(TabSaisie[[#This Row],[SEXE]])","v":"Vétéran mâle"},{"$f":"LEFT(TabSaisie[[#This Row],[CATEGORIE]],1)&LEFT(TabSaisie[[#This Row],[SEXE]],1)","v":"VM"},"DEL","Roméo","Mâle","2015-10-17",{"$f":"DuréeEnClair(TabSaisie[[#This Row],[DATE]]-TabSaisie[[#This Row],[DATE DE NAISSANCE]])","v":"2 a 3 m 1 s 5 j "},{"$f":"DATEDIF(TabSaisie[[#This Row],[DATE DE NAISSANCE]],TabSaisie[[#This Row],[DATE]],\"y\")","v":2},{"$f":"DATEDIF(TabSaisie[[#This Row],[DATE DE NAISSANCE]],TabSaisie[[#This Row],[DATE]],\"m\")","v":27},{"$f":"TabSaisie[[#This Row],[DATE]]-TabSaisie[[#This Row],[DATE DE NAISSANCE]]","v":834},{"$f":"ROUND(TabSaisie[[#This Row],[Jours]]/7,0)","v":119},"Rex","Irish","Siamois","Dumbo","t","h","dffh","sdjh"]
[5,"Bordeaux","2018-01-27","Standard",{"$f":"LEFT(TabSaisie[[#This Row],[CLASSE]],1)","v":"S"},{"$f":"IF(TabSaisie[[#This Row],[Mois]]<3,\"\",IF(TabSaisie[[#This Row],[Mois]]<6,\"Junior \",IF(TabSaisie[[#This Row],[Mois]]<22,\"Sénior \",\"Vétéran \")))&LOWER(TabSaisie[[#This Row],[SEXE]])","v":"Sénior mâle"},{"$f":"LEFT(TabSaisie[[#This Row],[CATEGORIE]],1)&LEFT(TabSaisie[[#This Row],[SEXE]],1)","v":"SM"},"DEL","Albert","Mâle","2016-12-13",{"$f":"DuréeEnClair(TabSaisie[[#This Row],[DATE]]-TabSaisie[[#This Row],[DATE DE NAISSANCE]])","v":"1 a 1 m 2 s "},{"$f":"DATEDIF(TabSaisie[[#This Row],[DATE DE NAISSANCE]],TabSaisie[[#This Row],[DATE]],\"y\")","v":1},{"$f":"DATEDIF(TabSaisie[[#This Row],[DATE DE NAISSANCE]],TabSaisie[[#This Row],[DATE]],\"m\")","v":13},{"$f":"TabSaisie[[#This Row],[DATE]]-TabSaisie[[#This Row],[DATE DE NAISSANCE]]","v":410},{"$f":"ROUND(TabSaisie[[#This Row],[Jours]]/7,0)","v":59},"Velours","Husky Roan","Lavande","Dumbo","y","j","s","wcfn"]
[6,"Bordeaux","2018-01-28","Standard",{"$f":"LEFT(TabSaisie[[#This Row],[CLASSE]],1)","v":"S"},{"$f":"IF(TabSaisie[[#This Row],[Mois]]<3,\"\",IF(TabSaisie[[#This Row],[Mois]]<6,\"Junior \",IF(TabSaisie[[#This Row],[Mois]]<22,\"Sénior \",\"Vétéran \")))&LOWER(TabSaisie[[#This Row],[SEXE]])","v":"Vétéran femelle"},{"$f":"LEFT(TabSaisie[[#This Row],[CATEGORIE]],1)&LEFT(TabSaisie[[#This Row],[SEXE]],1)","v":"VF"},"DEL","Nana","Femelle","2014-01-26",{"$f":"DuréeEnClair(TabSaisie[[#This Row],[DATE]]-TabSaisie[[#This Row],[DATE DE NAISSANCE]])","v":"4 a 2 j "},{"$f":"DATEDIF(TabSaisie[[#This Row],[DATE DE NAISSANCE]],TabSaisie[[#This Row],[DATE]],\"y\")","v":4},{"$f":"DATEDIF(TabSaisie[[#This Row],[DATE DE NAISSANCE]],TabSaisie[[#This Row],[DATE]],\"m\")","v":48},{"$f":"TabSaisie[[#This Row],[DATE]]-TabSaisie[[#This Row],[DATE DE NAISSANCE]]","v":1463},{"$f":"ROUND(TabSaisie[[#This Row],[Jours]]/7,0)","v":209},"Velours","Uni","Dove","Dumbo","u","k","qdh","wcvb"]
[7,"Paris","2018-01-28","Standard",{"$f":"LEFT(TabSaisie[[#This Row],[CLASSE]],1)","v":"S"},{"$f":"IF(TabSaisie[[#This Row],[Mois]]<3,\"\",IF(TabSaisie[[#This Row],[Mois]]<6,\"Junior \",IF(TabSaisie[[#This Row],[Mois]]<22,\"Sénior \",\"Vétéran \")))&LOWER(TabSaisie[[#This Row],[SEXE]])","v":"Vétéran mâle"},{"$f":"LEFT(TabSaisie[[#This Row],[CATEGORIE]],1)&LEFT(TabSaisie[[#This Row],[SEXE]],1)","v":"VM"},"DEL","Nono","Mâle","2015-08-29",{"$f":"DuréeEnClair(TabSaisie[[#This Row],[DATE]]-TabSaisie[[#This Row],[DATE DE NAISSANCE]])","v":"2 a 5 m "},{"$f":"DATEDIF(TabSaisie[[#This Row],[DATE DE NAISSANCE]],TabSaisie[[#This Row],[DATE]],\"y\")","v":2},{"$f":"DATEDIF(TabSaisie[[#This Row],[DATE DE NAISSANCE]],TabSaisie[[#This Row],[DATE]],\"m\")","v":28},{"$f":"TabSaisie[[#This Row],[DATE]]-TabSaisie[[#This Row],[DATE DE NAISSANCE]]","v":883},{"$f":"ROUND(TabSaisie[[#This Row],[Jours]]/7,0)","v":126},"Velours","Variberk","Siamois","Standard","i","l","dqfshn","qdfh"]
[8,"Rome","2018-01-01","Standard",{"$f":"LEFT(TabSaisie[[#This Row],[CLASSE]],1)","v":"S"},{"$f":"IF(TabSaisie[[#This Row],[Mois]]<3,\"\",IF(TabSaisie[[#This Row],[Mois]]<6,\"Junior \",IF(TabSaisie[[#This Row],[Mois]]<22,\"Sénior \",\"Vétéran \")))&LOWER(TabSaisie[[#This Row],[SEXE]])","v":"Vétéran mâle"},{"$f":"LEFT(TabSaisie[[#This Row],[CATEGORIE]],1)&LEFT(TabSaisie[[#This Row],[SEXE]],1)","v":"VM"},"DEL","Fun","Mâle","2013-08-05",{"$f":"DuréeEnClair(TabSaisie[[#This Row],[DATE]]-TabSaisie[[#This Row],[DATE DE NAISSANCE]])","v":"4 a 4 m 3 s 6 j "},{"$f":"DATEDIF(TabSaisie[[#This Row],[DATE DE NAISSANCE]],TabSaisie[[#This Row],[DATE]],\"y\")","v":4},{"$f":"DATEDIF(TabSaisie[[#This Row],[DATE DE NAISSANCE]],TabSaisie[[#This Row],[DATE]],\"m\")","v":52},{"$f":"TabSaisie[[#This Row],[DATE]]-TabSaisie[[#This Row],[DATE DE NAISSANCE]]","v":1610},{"$f":"ROUND(TabSaisie[[#This Row],[Jours]]/7,0)","v":230},"Rex","Capé","Devil","Standard","o","n","qdfh","dj"]
[9,"Grenoble","2018-01-10","Standard",{"$f":"LEFT(TabSaisie[[#This Row],[CLASSE]],1)","v":"S"},{"$f":"IF(TabSaisie[[#This Row],[Mois]]<3,\"\",IF(TabSaisie[[#This Row],[Mois]]<6,\"Junior \",IF(TabSaisie[[#This Row],[Mois]]<22,\"Sénior \",\"Vétéran \")))&LOWER(TabSaisie[[#This Row],[SEXE]])","v":"Sénior femelle"},{"$f":"LEFT(TabSaisie[[#This Row],[CATEGORIE]],1)&LEFT(TabSaisie[[#This Row],[SEXE]],1)","v":"SF"},"DEL","Hiro","Femelle","2016-11-30",{"$f":"DuréeEnClair(TabSaisie[[#This Row],[DATE]]-TabSaisie[[#This Row],[DATE DE NAISSANCE]])","v":"1 a 1 m 1 s 3 j "},{"$f":"DATEDIF(TabSaisie[[#This Row],[DATE DE NAISSANCE]],TabSaisie[[#This Row],[DATE]],\"y\")","v":1},{"$f":"DATEDIF(TabSaisie[[#This Row],[DATE DE NAISSANCE]],TabSaisie[[#This Row],[DATE]],\"m\")","v":13},{"$f":"TabSaisie[[#This Row],[DATE]]-TabSaisie[[#This Row],[DATE DE NAISSANCE]]","v":406},{"$f":"ROUND(TabSaisie[[#This Row],[Jours]]/7,0)","v":58},"Lisse","Badger","Ambre","Standard","q","b","dqfh","sfj"]
[10,"Grenoble","2018-01-11","Standard",{"$f":"LEFT(TabSaisie[[#This Row],[CLASSE]],1)","v":"S"},{"$f":"IF(TabSaisie[[#This Row],[Mois]]<3,\"\",IF(TabSaisie[[#This Row],[Mois]]<6,\"Junior \",IF(TabSaisie[[#This Row],[Mois]]<22,\"Sénior \",\"Vétéran \")))&LOWER(TabSaisie[[#This Row],[SEXE]])","v":"Vétéran femelle"},{"$f":"LEFT(TabSaisie[[#This Row],[CATEGORIE]],1)&LEFT(TabSaisie[[#This Row],[SEXE]],1)","v":"VF"},"DEL","Mama","Femelle","2012-11-21",{"$f":"DuréeEnClair(TabSaisie[[#This Row],[DATE]]-TabSaisie[[#This Row],[DATE DE NAISSANCE]])","v":"5 a 1 m 2 s 6 j "},{"$f":"DATEDIF(TabSaisie[[#This Row],[DATE DE NAISSANCE]],TabSaisie[[#This Row],[DATE]],\"y\")","v":5},{"$f":"DATEDIF(TabSaisie[[#This Row],[DATE DE NAISSANCE]],TabSaisie[[#This Row],[DATE]],\"m\")","v":61},{"$f":"TabSaisie[[#This Row],[DATE]]-TabSaisie[[#This Row],[DATE DE NAISSANCE]]","v":1877},{"$f":"ROUND(TabSaisie[[#This Row],[Jours]]/7,0)","v":268},"Rex","Bareback","Topaze","Standard","s","v","qdfh","qdfg"]
[{"$f":"ROW()-1","v":11},null,null,null,{"$f":"LEFT(TabSaisie[[#This Row],[CLASSE]],1)","v":""},{"$f":"IF(TabSaisie[[#This Row],[Mois]]<3,\"\",IF(TabSaisie[[#This Row],[Mois]]<6,\"Junior \",IF(TabSaisie[[#This Row],[Mois]]<22,\"Sénior \",\"Vétéran \")))&LOWER(TabSaisie[[#This Row],[SEXE]])","v":""},{"$f":"LEFT(TabSaisie[[#This Row],[CATEGORIE]],1)&LEFT(TabSaisie[[#This Row],[SEXE]],1)","v":""},null,"k",null,null,{"$f":"DuréeEnClair(TabSaisie[[#This Row],[DATE]]-TabSaisie[[#This Row],[DATE DE NAISSANCE]])","v":""},{"$f":"DATEDIF(TabSaisie[[#This Row],[DATE DE NAISSANCE]],TabSaisie[[#This Row],[DATE]],\"y\")","v":0},{"$f":"DATEDIF(TabSaisie[[#This Row],[DATE DE NAISSANCE]],TabSaisie[[#This Row],[DATE]],\"m\")","v":0},{"$f":"TabSaisie[[#This Row],[DATE]]-TabSaisie[[#This Row],[DATE DE NAISSANCE]]","v":0},{"$f":"ROUND(TabSaisie[[#This Row],[Jours]]/7,0)","v":0},null,"Husky à bande"]

{"sheet":"SJF","index":2,"n_rows":21,"n_cols":24,"rows_kept":21,"cut":false,"hidden":false,"merged":[]}
["N°","LIEU","DATE","CLASSE","CLASSE abr","CATEGORIE","CATEGORIE abr","AFFIXE","NOM","SEXE","DATE DE NAISSANCE","Complet","Année","Mois","Jours","Semaine","TYPE DE POIL","MARQUAGE","COULEUR","TYPE D'OREILLES","PÈRE","MERE","PROVENANCE","PROPRIETAIRE"]
[null,"Bordeaux","2018-01-28","Standard","S","Vétéran femelle","VF","DEL","Nana","Femelle","2014-01-26","4 a 2 j ",4,48,1463,209,"Velours","Uni","Dove","Dumbo","u","k","qdh","wcvb"]
[null,"Marseille","2018-01-14","Standard","S","Vétéran femelle","VF","DEL","Juliet","Femelle","2015-09-15","2 a 3 m 4 s 2 j ",2,27,852,122,"Rex","Husky Roan","Albinos","Standard","r","g","qdfh","sdjh"]
[null,"Grenoble","2018-01-11","Standard","S","Vétéran femelle","VF","DEL","Mama","Femelle","2012-11-21","5 a 1 m 2 s 6 j ",5,61,1877,268,"Rex","Bareback","Topaze","Standard","s","v","qdfh","qdfg"]
[null,"Paris","2018-01-28","Standard","S","Vétéran mâle","VM","DEL","Roméo","Mâle","2015-10-17","2 a 3 m 1 s 5 j ",2,27,834,119,"Rex","Irish","Siamois","Dumbo","t","h","dffh","sdjh"]
[null,"Paris","2018-01-28","Standard","S","Vétéran mâle","VM","DEL","Nono","Mâle","2015-08-29","2 a 5 m ",2,28,883,126,"Velours","Variberk","Siamois","Standard","i","l","dqfshn","qdfh"]
[null,"Rome","2018-01-01","Standard","S","Vétéran mâle","VM","DEL","Fun","Mâle","2013-08-05","4 a 4 m 3 s 6 j ",4,52,1610,230,"Rex","Capé","Devil","Standard","o","n","qdfh","dj"]
[null,"Paris","2018-02-01","Standard","S","Vétéran mâle","VM","DEL","Jack","Mâle","2012-01-01","6 a 1 m 1 j ",6,73,2223,318,"Lisse","Capé","Albinos","Dumbo","a","d","qdf","s"]
[null,"Grenoble","2018-01-10","Standard","S","Sénior femelle","SF","DEL","Hiro","Femelle","2016-11-30","1 a 1 m 1 s 3 j ",1,13,406,58,"Lisse","Badger","Ambre","Standard","q","b","dqfh","sfj"]
[null,"Marseille","2018-01-12","Standard","S","Sénior mâle","SM","DEL","John","Mâle","2017-06-25","6 m 2 s 4 j ",0,6,201,29,"Lisse","Berkshire","Bleu US","Standard","ze","f","dqsfh","sdh"]
[null,"Bordeaux","2018-01-27","Standard","S","Sénior mâle","SM","DEL","Albert","Mâle","2016-12-13","1 a 1 m 2 s ",1,13,410,59,"Velours","Husky Roan","Lavande","Dumbo","y","j","s","wcfn"]
[null,null,null,null,null,null,null,null,"k",null,null,null,0,0,0,0,null,"Husky à bande"]
[]
[]
[]
[]
[]
[]
[]
[]
[1]

{"sheet":"SJM","index":3,"n_rows":21,"n_cols":24,"rows_kept":21,"cut":false,"hidden":false,"merged":[]}
["N°","LIEU","DATE","CLASSE","CLASSE abr","CATEGORIE","CATEGORIE abr","AFFIXE","NOM","SEXE","DATE DE NAISSANCE","Complet","Année","Mois","Jours","Semaine","TYPE DE POIL","MARQUAGE","COULEUR","TYPE D'OREILLES","PÈRE","MERE","PROVENANCE","PROPRIETAIRE"]
[null,"Bordeaux","2018-01-28","Standard","S","Vétéran femelle","VF","DEL","Nana","Femelle","2014-01-26","4 a 2 j ",4,48,1463,209,"Velours","Uni","Dove","Dumbo","u","k","qdh","wcvb"]
[null,"Marseille","2018-01-14","Standard","S","Vétéran femelle","VF","DEL","Juliet","Femelle","2015-09-15","2 a 3 m 4 s 2 j ",2,27,852,122,"Rex","Husky Roan","Albinos","Standard","r","g","qdfh","sdjh"]
[null,"Grenoble","2018-01-11","Standard","S","Vétéran femelle","VF","DEL","Mama","Femelle","2012-11-21","5 a 1 m 2 s 6 j ",5,61,1877,268,"Rex","Bareback","Topaze","Standard","s","v","qdfh","qdfg"]
[null,"Paris","2018-01-28","Standard","S","Vétéran mâle","VM","DEL","Roméo","Mâle","2015-10-17","2 a 3 m 1 s 5 j ",2,27,834,119,"Rex","Irish","Siamois","Dumbo","t","h","dffh","sdjh"]
[null,"Paris","2018-01-28","Standard","S","Vétéran mâle","VM","DEL","Nono","Mâle","2015-08-29","2 a 5 m ",2,28,883,126,"Velours","Variberk","Siamois","Standard","i","l","dqfshn","qdfh"]
[null,"Rome","2018-01-01","Standard","S","Vétéran mâle","VM","DEL","Fun","Mâle","2013-08-05","4 a 4 m 3 s 6 j ",4,52,1610,230,"Rex","Capé","Devil","Standard","o","n","qdfh","dj"]
[null,"Paris","2018-02-01","Standard","S","Vétéran mâle","VM","DEL","Jack","Mâle","2012-01-01","6 a 1 m 1 j ",6,73,2223,318,"Lisse","Capé","Albinos","Dumbo","a","d","qdf","s"]
[null,"Grenoble","2018-01-10","Standard","S","Sénior femelle","SF","DEL","Hiro","Femelle","2016-11-30","1 a 1 m 1 s 3 j ",1,13,406,58,"Lisse","Badger","Ambre","Standard","q","b","dqfh","sfj"]
[null,"Marseille","2018-01-12","Standard","S","Sénior mâle","SM","DEL","John","Mâle","2017-06-25","6 m 2 s 4 j ",0,6,201,29,"Lisse","Berkshire","Bleu US","Standard","ze","f","dqsfh","sdh"]
[null,"Bordeaux","2018-01-27","Standard","S","Sénior mâle","SM","DEL","Albert","Mâle","2016-12-13","1 a 1 m 2 s ",1,13,410,59,"Velours","Husky Roan","Lavande","Dumbo","y","j","s","wcfn"]
[null,null,null,null,null,null,null,null,"k",null,null,null,0,0,0,0,null,"Husky à bande"]
[]
[]
[]
[]
[]
[]
[]
[]
[1]

{"sheet":"SSF","index":4,"n_rows":21,"n_cols":24,"rows_kept":21,"cut":false,"hidden":false,"merged":[]}
["N°","LIEU","DATE","CLASSE","CLASSE abr","CATEGORIE","CATEGORIE abr","AFFIXE","NOM","SEXE","DATE DE NAISSANCE","Complet","Année","Mois","Jours","Semaine","TYPE DE POIL","MARQUAGE","COULEUR","TYPE D'OREILLES","PÈRE","MERE","PROVENANCE","PROPRIETAIRE"]
[null,"Bordeaux","2018-01-28","Standard","S","Vétéran femelle","VF","DEL","Nana","Femelle","2014-01-26","4 a 2 j ",4,48,1463,209,"Velours","Uni","Dove","Dumbo","u","k","qdh","wcvb"]
[null,"Marseille","2018-01-14","Standard","S","Vétéran femelle","VF","DEL","Juliet","Femelle","2015-09-15","2 a 3 m 4 s 2 j ",2,27,852,122,"Rex","Husky Roan","Albinos","Standard","r","g","qdfh","sdjh"]
[null,"Grenoble","2018-01-11","Standard","S","Vétéran femelle","VF","DEL","Mama","Femelle","2012-11-21","5 a 1 m 2 s 6 j ",5,61,1877,268,"Rex","Bareback","Topaze","Standard","s","v","qdfh","qdfg"]
[null,"Paris","2018-01-28","Standard","S","Vétéran mâle","VM","DEL","Roméo","Mâle","2015-10-17","2 a 3 m 1 s 5 j ",2,27,834,119,"Rex","Irish","Siamois","Dumbo","t","h","dffh","sdjh"]
[null,"Paris","2018-01-28","Standard","S","Vétéran mâle","VM","DEL","Nono","Mâle","2015-08-29","2 a 5 m ",2,28,883,126,"Velours","Variberk","Siamois","Standard","i","l","dqfshn","qdfh"]
[null,"Rome","2018-01-01","Standard","S","Vétéran mâle","VM","DEL","Fun","Mâle","2013-08-05","4 a 4 m 3 s 6 j ",4,52,1610,230,"Rex","Capé","Devil","Standard","o","n","qdfh","dj"]
[null,"Paris","2018-02-01","Standard","S","Vétéran mâle","VM","DEL","Jack","Mâle","2012-01-01","6 a 1 m 1 j ",6,73,2223,318,"Lisse","Capé","Albinos","Dumbo","a","d","qdf","s"]
[null,"Grenoble","2018-01-10","Standard","S","Sénior femelle","SF","DEL","Hiro","Femelle","2016-11-30","1 a 1 m 1 s 3 j ",1,13,406,58,"Lisse","Badger","Ambre","Standard","q","b","dqfh","sfj"]
[null,"Marseille","2018-01-12","Standard","S","Sénior mâle","SM","DEL","John","Mâle","2017-06-25","6 m 2 s 4 j ",0,6,201,29,"Lisse","Berkshire","Bleu US","Standard","ze","f","dqsfh","sdh"]
[null,"Bordeaux","2018-01-27","Standard","S","Sénior mâle","SM","DEL","Albert","Mâle","2016-12-13","1 a 1 m 2 s ",1,13,410,59,"Velours","Husky Roan","Lavande","Dumbo","y","j","s","wcfn"]
[null,null,null,null,null,null,null,null,"k",null,null,null,0,0,0,0,null,"Husky à bande"]
[]
[]
[]
[]
[]
[]
[]
[]
[1]

{"sheet":"SSM","index":5,"n_rows":21,"n_cols":24,"rows_kept":21,"cut":false,"hidden":false,"merged":[]}
["N°","LIEU","DATE","CLASSE","CLASSE abr","CATEGORIE","CATEGORIE abr","AFFIXE","NOM","SEXE","DATE DE NAISSANCE","Complet","Année","Mois","Jours","Semaine","TYPE DE POIL","MARQUAGE","COULEUR","TYPE D'OREILLES","PÈRE","MERE","PROVENANCE","PROPRIETAIRE"]
[null,"Bordeaux","2018-01-28","Standard","S","Vétéran femelle","VF","DEL","Nana","Femelle","2014-01-26","4 a 2 j ",4,48,1463,209,"Velours","Uni","Dove","Dumbo","u","k","qdh","wcvb"]
[null,"Marseille","2018-01-14","Standard","S","Vétéran femelle","VF","DEL","Juliet","Femelle","2015-09-15","2 a 3 m 4 s 2 j ",2,27,852,122,"Rex","Husky Roan","Albinos","Standard","r","g","qdfh","sdjh"]
[null,"Grenoble","2018-01-11","Standard","S","Vétéran femelle","VF","DEL","Mama","Femelle","2012-11-21","5 a 1 m 2 s 6 j ",5,61,1877,268,"Rex","Bareback","Topaze","Standard","s","v","qdfh","qdfg"]
[null,"Paris","2018-01-28","Standard","S","Vétéran mâle","VM","DEL","Roméo","Mâle","2015-10-17","2 a 3 m 1 s 5 j ",2,27,834,119,"Rex","Irish","Siamois","Dumbo","t","h","dffh","sdjh"]
[null,"Paris","2018-01-28","Standard","S","Vétéran mâle","VM","DEL","Nono","Mâle","2015-08-29","2 a 5 m ",2,28,883,126,"Velours","Variberk","Siamois","Standard","i","l","dqfshn","qdfh"]
[null,"Rome","2018-01-01","Standard","S","Vétéran mâle","VM","DEL","Fun","Mâle","2013-08-05","4 a 4 m 3 s 6 j ",4,52,1610,230,"Rex","Capé","Devil","Standard","o","n","qdfh","dj"]
[null,"Paris","2018-02-01","Standard","S","Vétéran mâle","VM","DEL","Jack","Mâle","2012-01-01","6 a 1 m 1 j ",6,73,2223,318,"Lisse","Capé","Albinos","Dumbo","a","d","qdf","s"]
[null,"Grenoble","2018-01-10","Standard","S","Sénior femelle","SF","DEL","Hiro","Femelle","2016-11-30","1 a 1 m 1 s 3 j ",1,13,406,58,"Lisse","Badger","Ambre","Standard","q","b","dqfh","sfj"]
[null,"Marseille","2018-01-12","Standard","S","Sénior mâle","SM","DEL","John","Mâle","2017-06-25","6 m 2 s 4 j ",0,6,201,29,"Lisse","Berkshire","Bleu US","Standard","ze","f","dqsfh","sdh"]
[null,"Bordeaux","2018-01-27","Standard","S","Sénior mâle","SM","DEL","Albert","Mâle","2016-12-13","1 a 1 m 2 s ",1,13,410,59,"Velours","Husky Roan","Lavande","Dumbo","y","j","s","wcfn"]
[null,null,null,null,null,null,null,null,"k",null,null,null,0,0,0,0,null,"Husky à bande"]
[]
[]
[]
[]
[]
[]
[]
[]
[1]

{"sheet":"SVF","index":6,"n_rows":21,"n_cols":24,"rows_kept":21,"cut":false,"hidden":false,"merged":[]}
["N°","LIEU","DATE","CLASSE","CLASSE abr","CATEGORIE","CATEGORIE abr","AFFIXE","NOM","SEXE","DATE DE NAISSANCE","Complet","Année","Mois","Jours","Semaine","TYPE DE POIL","MARQUAGE","COULEUR","TYPE D'OREILLES","PÈRE","MERE","PROVENANCE","PROPRIETAIRE"]
[null,"Bordeaux","2018-01-28","Standard","S","Vétéran femelle","VF","DEL","Nana","Femelle","2014-01-26","4 a 2 j ",4,48,1463,209,"Velours","Uni","Dove","Dumbo","u","k","qdh","wcvb"]
[null,"Marseille","2018-01-14","Standard","S","Vétéran femelle","VF","DEL","Juliet","Femelle","2015-09-15","2 a 3 m 4 s 2 j ",2,27,852,122,"Rex","Husky Roan","Albinos","Standard","r","g","qdfh","sdjh"]
[null,"Grenoble","2018-01-11","Standard","S","Vétéran femelle","VF","DEL","Mama","Femelle","2012-11-21","5 a 1 m 2 s 6 j ",5,61,1877,268,"Rex","Bareback","Topaze","Standard","s","v","qdfh","qdfg"]
[null,"Paris","2018-01-28","Standard","S","Vétéran mâle","VM","DEL","Roméo","Mâle","2015-10-17","2 a 3 m 1 s 5 j ",2,27,834,119,"Rex","Irish","Siamois","Dumbo","t","h","dffh","sdjh"]
[null,"Paris","2018-01-28","Standard","S","Vétéran mâle","VM","DEL","Nono","Mâle","2015-08-29","2 a 5 m ",2,28,883,126,"Velours","Variberk","Siamois","Standard","i","l","dqfshn","qdfh"]
[null,"Rome","2018-01-01","Standard","S","Vétéran mâle","VM","DEL","Fun","Mâle","2013-08-05","4 a 4 m 3 s 6 j ",4,52,1610,230,"Rex","Capé","Devil","Standard","o","n","qdfh","dj"]
[null,"Paris","2018-02-01","Standard","S","Vétéran mâle","VM","DEL","Jack","Mâle","2012-01-01","6 a 1 m 1 j ",6,73,2223,318,"Lisse","Capé","Albinos","Dumbo","a","d","qdf","s"]
[null,"Grenoble","2018-01-10","Standard","S","Sénior femelle","SF","DEL","Hiro","Femelle","2016-11-30","1 a 1 m 1 s 3 j ",1,13,406,58,"Lisse","Badger","Ambre","Standard","q","b","dqfh","sfj"]
[null,"Marseille","2018-01-12","Standard","S","Sénior mâle","SM","DEL","John","Mâle","2017-06-25","6 m 2 s 4 j ",0,6,201,29,"Lisse","Berkshire","Bleu US","Standard","ze","f","dqsfh","sdh"]
[null,"Bordeaux","2018-01-27","Standard","S","Sénior mâle","SM","DEL","Albert","Mâle","2016-12-13","1 a 1 m 2 s ",1,13,410,59,"Velours","Husky Roan","Lavande","Dumbo","y","j","s","wcfn"]
[null,null,null,null,null,null,null,null,"k",null,null,null,0,0,0,0,null,"Husky à bande"]
[]
[]
[]
[]
[]
[]
[]
[]
[1]

{"sheet":"SVM","index":7,"n_rows":12,"n_cols":24,"rows_kept":12,"cut":false,"hidden":false,"merged":[]}
["N°","LIEU","DATE","CLASSE","CLASSE abr","CATEGORIE","CATEGORIE abr","AFFIXE","NOM","SEXE","DATE DE NAISSANCE","Complet","Année","Mois","Jours","Semaine","TYPE DE POIL","MARQUAGE","COULEUR","TYPE D'OREILLES","PÈRE","MERE","PROVENANCE","PROPRIETAIRE"]
[null,"Bordeaux","2018-01-28","Standard","S","Vétéran femelle","VF","DEL","Nana","Femelle","2014-01-26","4 a 2 j ",4,48,1463,209,"Velours","Uni","Dove","Dumbo","u","k","qdh","wcvb"]
[null,"Marseille","2018-01-14","Standard","S","Vétéran femelle","VF","DEL","Juliet","Femelle","2015-09-15","2 a 3 m 4 s 2 j ",2,27,852,122,"Rex","Husky Roan","Albinos","Standard","r","g","qdfh","sdjh"]
[null,"Grenoble","2018-01-11","Standard","S","Vétéran femelle","VF","DEL","Mama","Femelle","2012-11-21","5 a 1 m 2 s 6 j ",5,61,1877,268,"Rex","Bareback","Topaze","Standard","s","v","qdfh","qdfg"]
[null,"Paris","2018-01-28","Standard","S","Vétéran mâle","VM","DEL","Roméo","Mâle","2015-10-17","2 a 3 m 1 s 5 j ",2,27,834,119,"Rex","Irish","Siamois","Dumbo","t","h","dffh","sdjh"]
[null,"Paris","2018-01-28","Standard","S","Vétéran mâle","VM","DEL","Nono","Mâle","2015-08-29","2 a 5 m ",2,28,883,126,"Velours","Variberk","Siamois","Standard","i","l","dqfshn","qdfh"]
[null,"Rome","2018-01-01","Standard","S","Vétéran mâle","VM","DEL","Fun","Mâle","2013-08-05","4 a 4 m 3 s 6 j ",4,52,1610,230,"Rex","Capé","Devil","Standard","o","n","qdfh","dj"]
[null,"Paris","2018-02-01","Standard","S","Vétéran mâle","VM","DEL","Jack","Mâle","2012-01-01","6 a 1 m 1 j ",6,73,2223,318,"Lisse","Capé","Albinos","Dumbo","a","d","qdf","s"]
[null,"Grenoble","2018-01-10","Standard","S","Sénior femelle","SF","DEL","Hiro","Femelle","2016-11-30","1 a 1 m 1 s 3 j ",1,13,406,58,"Lisse","Badger","Ambre","Standard","q","b","dqfh","sfj"]
[null,"Marseille","2018-01-12","Standard","S","Sénior mâle","SM","DEL","John","Mâle","2017-06-25","6 m 2 s 4 j ",0,6,201,29,"Lisse","Berkshire","Bleu US","Standard","ze","f","dqsfh","sdh"]
[null,"Bordeaux","2018-01-27","Standard","S","Sénior mâle","SM","DEL","Albert","Mâle","2016-12-13","1 a 1 m 2 s ",1,13,410,59,"Velours","Husky Roan","Lavande","Dumbo","y","j","s","wcfn"]
[null,null,null,null,null,null,null,null,"k",null,null,null,0,0,0,0,null,"Husky à bande"]

{"sheet":"NJF","index":8,"n_rows":21,"n_cols":24,"rows_kept":21,"cut":false,"hidden":false,"merged":[]}
["N°","LIEU","DATE","CLASSE","CLASSE abr","CATEGORIE","CATEGORIE abr","AFFIXE","NOM","SEXE","DATE DE NAISSANCE","Complet","Année","Mois","Jours","Semaine","TYPE DE POIL","MARQUAGE","COULEUR","TYPE D'OREILLES","PÈRE","MERE","PROVENANCE","PROPRIETAIRE"]
[null,"Marseille","2018-01-14","Standard","S","Vétéran femelle","VF","DEL","Juliet","Femelle","2015-09-15","2 a 3 m 4 s 2 j ",2,27,852,122,"Rex","Husky Roan","Albinos","Standard","r","g","qdfh","sdjh"]
[null,"Bordeaux","2018-01-28","Standard","S","Vétéran femelle","VF","DEL","Nana","Femelle","2014-01-26","4 a 2 j ",4,48,1463,209,"Velours","Uni","Dove","Dumbo","u","k","qdh","wcvb"]
[null,"Grenoble","2018-01-11","Standard","S","Vétéran femelle","VF","DEL","Mama","Femelle","2012-11-21","5 a 1 m 2 s 6 j ",5,61,1877,268,"Rex","Bareback","Topaze","Standard","s","v","qdfh","qdfg"]
[null,"Paris","2018-01-28","Standard","S","Vétéran mâle","VM","DEL","Roméo","Mâle","2015-10-17","2 a 3 m 1 s 5 j ",2,27,834,119,"Rex","Irish","Siamois","Dumbo","t","h","dffh","sdjh"]
[null,"Paris","2018-01-28","Standard","S","Vétéran mâle","VM","DEL","Nono","Mâle","2015-08-29","2 a 5 m ",2,28,883,126,"Velours","Variberk","Siamois","Standard","i","l","dqfshn","qdfh"]
[null,"Rome","2018-01-01","Standard","S","Vétéran mâle","VM","DEL","Fun","Mâle","2013-08-05","4 a 4 m 3 s 6 j ",4,52,1610,230,"Rex","Capé","Devil","Standard","o","n","qdfh","dj"]
[null,"Paris","2018-02-01","Standard","S","Vétéran mâle","VM","DEL","Jack","Mâle","2012-01-01","6 a 1 m 1 j ",6,73,2223,318,"Lisse","Capé","Albinos","Dumbo","a","d","qdf","s"]
[null,"Grenoble","2018-01-10","Standard","S","Sénior femelle","SF","DEL","Hiro","Femelle","2016-11-30","1 a 1 m 1 s 3 j ",1,13,406,58,"Lisse","Badger","Ambre","Standard","q","b","dqfh","sfj"]
[null,"Marseille","2018-01-12","Standard","S","Sénior mâle","SM","DEL","John","Mâle","2017-06-25","6 m 2 s 4 j ",0,6,201,29,"Lisse","Berkshire","Bleu US","Standard","ze","f","dqsfh","sdh"]
[null,"Bordeaux","2018-01-27","Standard","S","Sénior mâle","SM","DEL","Albert","Mâle","2016-12-13","1 a 1 m 2 s ",1,13,410,59,"Velours","Husky Roan","Lavande","Dumbo","y","j","s","wcfn"]
[null,null,null,null,null,null,null,null,"k",null,null,null,0,0,0,0,null,"Husky à bande"]
[]
[]
[]
[]
[]
[]
[]
[]
[1]

{"sheet":"NJM","index":9,"n_rows":21,"n_cols":24,"rows_kept":21,"cut":false,"hidden":false,"merged":[]}
["N°","LIEU","DATE","CLASSE","CLASSE abr","CATEGORIE","CATEGORIE abr","AFFIXE","NOM","SEXE","DATE DE NAISSANCE","Complet","Année","Mois","Jours","Semaine","TYPE DE POIL","MARQUAGE","COULEUR","TYPE D'OREILLES","PÈRE","MERE","PROVENANCE","PROPRIETAIRE"]
[null,"Marseille","2018-01-14","Standard","S","Vétéran femelle","VF","DEL","Juliet","Femelle","2015-09-15","2 a 3 m 4 s 2 j ",2,27,852,122,"Rex","Husky Roan","Albinos","Standard","r","g","qdfh","sdjh"]
[null,"Bordeaux","2018-01-28","Standard","S","Vétéran femelle","VF","DEL","Nana","Femelle","2014-01-26","4 a 2 j ",4,48,1463,209,"Velours","Uni","Dove","Dumbo","u","k","qdh","wcvb"]
[null,"Grenoble","2018-01-11","Standard","S","Vétéran femelle","VF","DEL","Mama","Femelle","2012-11-21","5 a 1 m 2 s 6 j ",5,61,1877,268,"Rex","Bareback","Topaze","Standard","s","v","qdfh","qdfg"]
[null,"Paris","2018-01-28","Standard","S","Vétéran mâle","VM","DEL","Roméo","Mâle","2015-10-17","2 a 3 m 1 s 5 j ",2,27,834,119,"Rex","Irish","Siamois","Dumbo","t","h","dffh","sdjh"]
[null,"Paris","2018-01-28","Standard","S","Vétéran mâle","VM","DEL","Nono","Mâle","2015-08-29","2 a 5 m ",2,28,883,126,"Velours","Variberk","Siamois","Standard","i","l","dqfshn","qdfh"]
[null,"Rome","2018-01-01","Standard","S","Vétéran mâle","VM","DEL","Fun","Mâle","2013-08-05","4 a 4 m 3 s 6 j ",4,52,1610,230,"Rex","Capé","Devil","Standard","o","n","qdfh","dj"]
[null,"Paris","2018-02-01","Standard","S","Vétéran mâle","VM","DEL","Jack","Mâle","2012-01-01","6 a 1 m 1 j ",6,73,2223,318,"Lisse","Capé","Albinos","Dumbo","a","d","qdf","s"]
[null,"Grenoble","2018-01-10","Standard","S","Sénior femelle","SF","DEL","Hiro","Femelle","2016-11-30","1 a 1 m 1 s 3 j ",1,13,406,58,"Lisse","Badger","Ambre","Standard","q","b","dqfh","sfj"]
[null,"Marseille","2018-01-12","Standard","S","Sénior mâle","SM","DEL","John","Mâle","2017-06-25","6 m 2 s 4 j ",0,6,201,29,"Lisse","Berkshire","Bleu US","Standard","ze","f","dqsfh","sdh"]
[null,"Bordeaux","2018-01-27","Standard","S","Sénior mâle","SM","DEL","Albert","Mâle","2016-12-13","1 a 1 m 2 s ",1,13,410,59,"Velours","Husky Roan","Lavande","Dumbo","y","j","s","wcfn"]
[null,null,null,null,null,null,null,null,"k",null,null,null,0,0,0,0,null,"Husky à bande"]
[]
[]
[]
[]
[]
[]
[]
[]
[1]

{"sheet":"NSF","index":10,"n_rows":21,"n_cols":24,"rows_kept":21,"cut":false,"hidden":false,"merged":[]}
["N°","LIEU","DATE","CLASSE","CLASSE abr","CATEGORIE","CATEGORIE abr","AFFIXE","NOM","SEXE","DATE DE NAISSANCE","Complet","Année","Mois","Jours","Semaine","TYPE DE POIL","MARQUAGE","COULEUR","TYPE D'OREILLES","PÈRE","MERE","PROVENANCE","PROPRIETAIRE"]
[null,"Marseille","2018-01-14","Standard","S","Vétéran femelle","VF","DEL","Juliet","Femelle","2015-09-15","2 a 3 m 4 s 2 j ",2,27,852,122,"Rex","Husky Roan","Albinos","Standard","r","g","qdfh","sdjh"]
[null,"Bordeaux","2018-01-28","Standard","S","Vétéran femelle","VF","DEL","Nana","Femelle","2014-01-26","4 a 2 j ",4,48,1463,209,"Velours","Uni","Dove","Dumbo","u","k","qdh","wcvb"]
[null,"Grenoble","2018-01-11","Standard","S","Vétéran femelle","VF","DEL","Mama","Femelle","2012-11-21","5 a 1 m 2 s 6 j ",5,61,1877,268,"Rex","Bareback","Topaze","Standard","s","v","qdfh","qdfg"]
[null,"Paris","2018-01-28","Standard","S","Vétéran mâle","VM","DEL","Roméo","Mâle","2015-10-17","2 a 3 m 1 s 5 j ",2,27,834,119,"Rex","Irish","Siamois","Dumbo","t","h","dffh","sdjh"]
[null,"Paris","2018-01-28","Standard","S","Vétéran mâle","VM","DEL","Nono","Mâle","2015-08-29","2 a 5 m ",2,28,883,126,"Velours","Variberk","Siamois","Standard","i","l","dqfshn","qdfh"]
[null,"Rome","2018-01-01","Standard","S","Vétéran mâle","VM","DEL","Fun","Mâle","2013-08-05","4 a 4 m 3 s 6 j ",4,52,1610,230,"Rex","Capé","Devil","Standard","o","n","qdfh","dj"]
[null,"Paris","2018-02-01","Standard","S","Vétéran mâle","VM","DEL","Jack","Mâle","2012-01-01","6 a 1 m 1 j ",6,73,2223,318,"Lisse","Capé","Albinos","Dumbo","a","d","qdf","s"]
[null,"Grenoble","2018-01-10","Standard","S","Sénior femelle","SF","DEL","Hiro","Femelle","2016-11-30","1 a 1 m 1 s 3 j ",1,13,406,58,"Lisse","Badger","Ambre","Standard","q","b","dqfh","sfj"]
[null,"Marseille","2018-01-12","Standard","S","Sénior mâle","SM","DEL","John","Mâle","2017-06-25","6 m 2 s 4 j ",0,6,201,29,"Lisse","Berkshire","Bleu US","Standard","ze","f","dqsfh","sdh"]
[null,"Bordeaux","2018-01-27","Standard","S","Sénior mâle","SM","DEL","Albert","Mâle","2016-12-13","1 a 1 m 2 s ",1,13,410,59,"Velours","Husky Roan","Lavande","Dumbo","y","j","s","wcfn"]
[null,null,null,null,null,null,null,null,"k",null,null,null,0,0,0,0,null,"Husky à bande"]
[]
[]
[]
[]
[]
[]
[]
[]
[1]

{"sheet":"NSM","index":11,"n_rows":21,"n_cols":24,"rows_kept":21,"cut":false,"hidden":false,"merged":[]}
["N°","LIEU","DATE","CLASSE","CLASSE abr","CATEGORIE","CATEGORIE abr","AFFIXE","NOM","SEXE","DATE DE NAISSANCE","Complet","Année","Mois","Jours","Semaine","TYPE DE POIL","MARQUAGE","COULEUR","TYPE D'OREILLES","PÈRE","MERE","PROVENANCE","PROPRIETAIRE"]
[null,"Marseille","2018-01-14","Standard","S","Vétéran femelle","VF","DEL","Juliet","Femelle","2015-09-15","2 a 3 m 4 s 2 j ",2,27,852,122,"Rex","Husky Roan","Albinos","Standard","r","g","qdfh","sdjh"]
[null,"Bordeaux","2018-01-28","Standard","S","Vétéran femelle","VF","DEL","Nana","Femelle","2014-01-26","4 a 2 j ",4,48,1463,209,"Velours","Uni","Dove","Dumbo","u","k","qdh","wcvb"]
[null,"Grenoble","2018-01-11","Standard","S","Vétéran femelle","VF","DEL","Mama","Femelle","2012-11-21","5 a 1 m 2 s 6 j ",5,61,1877,268,"Rex","Bareback","Topaze","Standard","s","v","qdfh","qdfg"]
[null,"Paris","2018-01-28","Standard","S","Vétéran mâle","VM","DEL","Roméo","Mâle","2015-10-17","2 a 3 m 1 s 5 j ",2,27,834,119,"Rex","Irish","Siamois","Dumbo","t","h","dffh","sdjh"]
[null,"Paris","2018-01-28","Standard","S","Vétéran mâle","VM","DEL","Nono","Mâle","2015-08-29","2 a 5 m ",2,28,883,126,"Velours","Variberk","Siamois","Standard","i","l","dqfshn","qdfh"]
[null,"Rome","2018-01-01","Standard","S","Vétéran mâle","VM","DEL","Fun","Mâle","2013-08-05","4 a 4 m 3 s 6 j ",4,52,1610,230,"Rex","Capé","Devil","Standard","o","n","qdfh","dj"]
[null,"Paris","2018-02-01","Standard","S","Vétéran mâle","VM","DEL","Jack","Mâle","2012-01-01","6 a 1 m 1 j ",6,73,2223,318,"Lisse","Capé","Albinos","Dumbo","a","d","qdf","s"]
[null,"Grenoble","2018-01-10","Standard","S","Sénior femelle","SF","DEL","Hiro","Femelle","2016-11-30","1 a 1 m 1 s 3 j ",1,13,406,58,"Lisse","Badger","Ambre","Standard","q","b","dqfh","sfj"]
[null,"Marseille","2018-01-12","Standard","S","Sénior mâle","SM","DEL","John","Mâle","2017-06-25","6 m 2 s 4 j ",0,6,201,29,"Lisse","Berkshire","Bleu US","Standard","ze","f","dqsfh","sdh"]
[null,"Bordeaux","2018-01-27","Standard","S","Sénior mâle","SM","DEL","Albert","Mâle","2016-12-13","1 a 1 m 2 s ",1,13,410,59,"Velours","Husky Roan","Lavande","Dumbo","y","j","s","wcfn"]
[null,null,null,null,null,null,null,null,"k",null,null,null,0,0,0,0,null,"Husky à bande"]
[]
[]
[]
[]
[]
[]
[]
[]
[1]

{"sheet":"NVF","index":12,"n_rows":21,"n_cols":24,"rows_kept":21,"cut":false,"hidden":false,"merged":[]}
["N°","LIEU","DATE","CLASSE","CLASSE abr","CATEGORIE","CATEGORIE abr","AFFIXE","NOM","SEXE","DATE DE NAISSANCE","Complet","Année","Mois","Jours","Semaine","TYPE DE POIL","MARQUAGE","COULEUR","TYPE D'OREILLES","PÈRE","MERE","PROVENANCE","PROPRIETAIRE"]
[null,"Marseille","2018-01-14","Standard","S","Vétéran femelle","VF","DEL","Juliet","Femelle","2015-09-15","2 a 3 m 4 s 2 j ",2,27,852,122,"Rex","Husky Roan","Albinos","Standard","r","g","qdfh","sdjh"]
[null,"Bordeaux","2018-01-28","Standard","S","Vétéran femelle","VF","DEL","Nana","Femelle","2014-01-26","4 a 2 j ",4,48,1463,209,"Velours","Uni","Dove","Dumbo","u","k","qdh","wcvb"]
[null,"Grenoble","2018-01-11","Standard","S","Vétéran femelle","VF","DEL","Mama","Femelle","2012-11-21","5 a 1 m 2 s 6 j ",5,61,1877,268,"Rex","Bareback","Topaze","Standard","s","v","qdfh","qdfg"]
[null,"Paris","2018-01-28","Standard","S","Vétéran mâle","VM","DEL","Roméo","Mâle","2015-10-17","2 a 3 m 1 s 5 j ",2,27,834,119,"Rex","Irish","Siamois","Dumbo","t","h","dffh","sdjh"]
[null,"Paris","2018-01-28","Standard","S","Vétéran mâle","VM","DEL","Nono","Mâle","2015-08-29","2 a 5 m ",2,28,883,126,"Velours","Variberk","Siamois","Standard","i","l","dqfshn","qdfh"]
[null,"Rome","2018-01-01","Standard","S","Vétéran mâle","VM","DEL","Fun","Mâle","2013-08-05","4 a 4 m 3 s 6 j ",4,52,1610,230,"Rex","Capé","Devil","Standard","o","n","qdfh","dj"]
[null,"Paris","2018-02-01","Standard","S","Vétéran mâle","VM","DEL","Jack","Mâle","2012-01-01","6 a 1 m 1 j ",6,73,2223,318,"Lisse","Capé","Albinos","Dumbo","a","d","qdf","s"]
[null,"Grenoble","2018-01-10","Standard","S","Sénior femelle","SF","DEL","Hiro","Femelle","2016-11-30","1 a 1 m 1 s 3 j ",1,13,406,58,"Lisse","Badger","Ambre","Standard","q","b","dqfh","sfj"]
[null,"Marseille","2018-01-12","Standard","S","Sénior mâle","SM","DEL","John","Mâle","2017-06-25","6 m 2 s 4 j ",0,6,201,29,"Lisse","Berkshire","Bleu US","Standard","ze","f","dqsfh","sdh"]
[null,"Bordeaux","2018-01-27","Standard","S","Sénior mâle","SM","DEL","Albert","Mâle","2016-12-13","1 a 1 m 2 s ",1,13,410,59,"Velours","Husky Roan","Lavande","Dumbo","y","j","s","wcfn"]
[null,null,null,null,null,null,null,null,"k",null,null,null,0,0,0,0,null,"Husky à bande"]
[]
[]
[]
[]
[]
[]
[]
[]
[1]

{"sheet":"NVM","index":13,"n_rows":21,"n_cols":24,"rows_kept":21,"cut":false,"hidden":false,"merged":[]}
["N°","LIEU","DATE","CLASSE","CLASSE abr","CATEGORIE","CATEGORIE abr","AFFIXE","NOM","SEXE","DATE DE NAISSANCE","Complet","Année","Mois","Jours","Semaine","TYPE DE POIL","MARQUAGE","COULEUR","TYPE D'OREILLES","PÈRE","MERE","PROVENANCE","PROPRIETAIRE"]
[null,"Marseille","2018-01-14","Standard","S","Vétéran femelle","VF","DEL","Juliet","Femelle","2015-09-15","2 a 3 m 4 s 2 j ",2,27,852,122,"Rex","Husky Roan","Albinos","Standard","r","g","qdfh","sdjh"]
[null,"Bordeaux","2018-01-28","Standard","S","Vétéran femelle","VF","DEL","Nana","Femelle","2014-01-26","4 a 2 j ",4,48,1463,209,"Velours","Uni","Dove","Dumbo","u","k","qdh","wcvb"]
[null,"Grenoble","2018-01-11","Standard","S","Vétéran femelle","VF","DEL","Mama","Femelle","2012-11-21","5 a 1 m 2 s 6 j ",5,61,1877,268,"Rex","Bareback","Topaze","Standard","s","v","qdfh","qdfg"]
[null,"Paris","2018-01-28","Standard","S","Vétéran mâle","VM","DEL","Roméo","Mâle","2015-10-17","2 a 3 m 1 s 5 j ",2,27,834,119,"Rex","Irish","Siamois","Dumbo","t","h","dffh","sdjh"]
[null,"Paris","2018-01-28","Standard","S","Vétéran mâle","VM","DEL","Nono","Mâle","2015-08-29","2 a 5 m ",2,28,883,126,"Velours","Variberk","Siamois","Standard","i","l","dqfshn","qdfh"]
[null,"Rome","2018-01-01","Standard","S","Vétéran mâle","VM","DEL","Fun","Mâle","2013-08-05","4 a 4 m 3 s 6 j ",4,52,1610,230,"Rex","Capé","Devil","Standard","o","n","qdfh","dj"]
[null,"Paris","2018-02-01","Standard","S","Vétéran mâle","VM","DEL","Jack","Mâle","2012-01-01","6 a 1 m 1 j ",6,73,2223,318,"Lisse","Capé","Albinos","Dumbo","a","d","qdf","s"]
[null,"Grenoble","2018-01-10","Standard","S","Sénior femelle","SF","DEL","Hiro","Femelle","2016-11-30","1 a 1 m 1 s 3 j ",1,13,406,58,"Lisse","Badger","Ambre","Standard","q","b","dqfh","sfj"]
[null,"Marseille","2018-01-12","Standard","S","Sénior mâle","SM","DEL","John","Mâle","2017-06-25","6 m 2 s 4 j ",0,6,201,29,"Lisse","Berkshire","Bleu US","Standard","ze","f","dqsfh","sdh"]
[null,"Bordeaux","2018-01-27","Standard","S","Sénior mâle","SM","DEL","Albert","Mâle","2016-12-13","1 a 1 m 2 s ",1,13,410,59,"Velours","Husky Roan","Lavande","Dumbo","y","j","s","wcfn"]
[null,null,null,null,null,null,null,null,"k",null,null,null,0,0,0,0,null,"Husky à bande"]
[]
[]
[]
[]
[]
[]
[]
[]
[1]

{"sheet":"PJF","index":14,"n_rows":21,"n_cols":24,"rows_kept":21,"cut":false,"hidden":false,"merged":[]}
["N°","LIEU","DATE","CLASSE","CLASSE abr","CATEGORIE","CATEGORIE abr","AFFIXE","NOM","SEXE","DATE DE NAISSANCE","Complet","Année","Mois","Jours","Semaine","TYPE DE POIL","MARQUAGE","COULEUR","TYPE D'OREILLES","PÈRE","MERE","PROVENANCE","PROPRIETAIRE"]
[null,"Marseille","2018-01-14","Standard","S","Vétéran femelle","VF","DEL","Juliet","Femelle","2015-09-15","2 a 3 m 4 s 2 j ",2,27,852,122,"Rex","Husky Roan","Albinos","Standard","r","g","qdfh","sdjh"]
[null,"Bordeaux","2018-01-28","Standard","S","Vétéran femelle","VF","DEL","Nana","Femelle","2014-01-26","4 a 2 j ",4,48,1463,209,"Velours","Uni","Dove","Dumbo","u","k","qdh","wcvb"]
[null,"Grenoble","2018-01-11","Standard","S","Vétéran femelle","VF","DEL","Mama","Femelle","2012-11-21","5 a 1 m 2 s 6 j ",5,61,1877,268,"Rex","Bareback","Topaze","Standard","s","v","qdfh","qdfg"]
[null,"Paris","2018-01-28","Standard","S","Vétéran mâle","VM","DEL","Roméo","Mâle","2015-10-17","2 a 3 m 1 s 5 j ",2,27,834,119,"Rex","Irish","Siamois","Dumbo","t","h","dffh","sdjh"]
[null,"Paris","2018-01-28","Standard","S","Vétéran mâle","VM","DEL","Nono","Mâle","2015-08-29","2 a 5 m ",2,28,883,126,"Velours","Variberk","Siamois","Standard","i","l","dqfshn","qdfh"]
[null,"Rome","2018-01-01","Standard","S","Vétéran mâle","VM","DEL","Fun","Mâle","2013-08-05","4 a 4 m 3 s 6 j ",4,52,1610,230,"Rex","Capé","Devil","Standard","o","n","qdfh","dj"]
[null,"Paris","2018-02-01","Standard","S","Vétéran mâle","VM","DEL","Jack","Mâle","2012-01-01","6 a 1 m 1 j ",6,73,2223,318,"Lisse","Capé","Albinos","Dumbo","a","d","qdf","s"]
[null,"Grenoble","2018-01-10","Standard","S","Sénior femelle","SF","DEL","Hiro","Femelle","2016-11-30","1 a 1 m 1 s 3 j ",1,13,406,58,"Lisse","Badger","Ambre","Standard","q","b","dqfh","sfj"]
[null,"Marseille","2018-01-12","Standard","S","Sénior mâle","SM","DEL","John","Mâle","2017-06-25","6 m 2 s 4 j ",0,6,201,29,"Lisse","Berkshire","Bleu US","Standard","ze","f","dqsfh","sdh"]
[null,"Bordeaux","2018-01-27","Standard","S","Sénior mâle","SM","DEL","Albert","Mâle","2016-12-13","1 a 1 m 2 s ",1,13,410,59,"Velours","Husky Roan","Lavande","Dumbo","y","j","s","wcfn"]
[null,null,null,null,null,null,null,null,"k",null,null,null,0,0,0,0,null,"Husky à bande"]
[]
[]
[]
[]
[]
[]
[]
[]
[1]

{"sheet":"PJM","index":15,"n_rows":21,"n_cols":24,"rows_kept":21,"cut":false,"hidden":false,"merged":[]}
["N°","LIEU","DATE","CLASSE","CLASSE abr","CATEGORIE","CATEGORIE abr","AFFIXE","NOM","SEXE","DATE DE NAISSANCE","Complet","Année","Mois","Jours","Semaine","TYPE DE POIL","MARQUAGE","COULEUR","TYPE D'OREILLES","PÈRE","MERE","PROVENANCE","PROPRIETAIRE"]
[null,"Marseille","2018-01-14","Standard","S","Vétéran femelle","VF","DEL","Juliet","Femelle","2015-09-15","2 a 3 m 4 s 2 j ",2,27,852,122,"Rex","Husky Roan","Albinos","Standard","r","g","qdfh","sdjh"]
[null,"Bordeaux","2018-01-28","Standard","S","Vétéran femelle","VF","DEL","Nana","Femelle","2014-01-26","4 a 2 j ",4,48,1463,209,"Velours","Uni","Dove","Dumbo","u","k","qdh","wcvb"]
[null,"Grenoble","2018-01-11","Standard","S","Vétéran femelle","VF","DEL","Mama","Femelle","2012-11-21","5 a 1 m 2 s 6 j ",5,61,1877,268,"Rex","Bareback","Topaze","Standard","s","v","qdfh","qdfg"]
[null,"Paris","2018-01-28","Standard","S","Vétéran mâle","VM","DEL","Roméo","Mâle","2015-10-17","2 a 3 m 1 s 5 j ",2,27,834,119,"Rex","Irish","Siamois","Dumbo","t","h","dffh","sdjh"]
[null,"Paris","2018-01-28","Standard","S","Vétéran mâle","VM","DEL","Nono","Mâle","2015-08-29","2 a 5 m ",2,28,883,126,"Velours","Variberk","Siamois","Standard","i","l","dqfshn","qdfh"]
[null,"Rome","2018-01-01","Standard","S","Vétéran mâle","VM","DEL","Fun","Mâle","2013-08-05","4 a 4 m 3 s 6 j ",4,52,1610,230,"Rex","Capé","Devil","Standard","o","n","qdfh","dj"]
[null,"Paris","2018-02-01","Standard","S","Vétéran mâle","VM","DEL","Jack","Mâle","2012-01-01","6 a 1 m 1 j ",6,73,2223,318,"Lisse","Capé","Albinos","Dumbo","a","d","qdf","s"]
[null,"Grenoble","2018-01-10","Standard","S","Sénior femelle","SF","DEL","Hiro","Femelle","2016-11-30","1 a 1 m 1 s 3 j ",1,13,406,58,"Lisse","Badger","Ambre","Standard","q","b","dqfh","sfj"]
[null,"Marseille","2018-01-12","Standard","S","Sénior mâle","SM","DEL","John","Mâle","2017-06-25","6 m 2 s 4 j ",0,6,201,29,"Lisse","Berkshire","Bleu US","Standard","ze","f","dqsfh","sdh"]
[null,"Bordeaux","2018-01-27","Standard","S","Sénior mâle","SM","DEL","Albert","Mâle","2016-12-13","1 a 1 m 2 s ",1,13,410,59,"Velours","Husky Roan","Lavande","Dumbo","y","j","s","wcfn"]
[null,null,null,null,null,null,null,null,"k",null,null,null,0,0,0,0,null,"Husky à bande"]
[]
[]
[]
[]
[]
[]
[]
[]
[1]

{"sheet":"PSF","index":16,"n_rows":21,"n_cols":24,"rows_kept":21,"cut":false,"hidden":false,"merged":[]}
["N°","LIEU","DATE","CLASSE","CLASSE abr","CATEGORIE","CATEGORIE abr","AFFIXE","NOM","SEXE","DATE DE NAISSANCE","Complet","Année","Mois","Jours","Semaine","TYPE DE POIL","MARQUAGE","COULEUR","TYPE D'OREILLES","PÈRE","MERE","PROVENANCE","PROPRIETAIRE"]
[null,"Marseille","2018-01-14","Standard","S","Vétéran femelle","VF","DEL","Juliet","Femelle","2015-09-15","2 a 3 m 4 s 2 j ",2,27,852,122,"Rex","Husky Roan","Albinos","Standard","r","g","qdfh","sdjh"]
[null,"Bordeaux","2018-01-28","Standard","S","Vétéran femelle","VF","DEL","Nana","Femelle","2014-01-26","4 a 2 j ",4,48,1463,209,"Velours","Uni","Dove","Dumbo","u","k","qdh","wcvb"]
[null,"Grenoble","2018-01-11","Standard","S","Vétéran femelle","VF","DEL","Mama","Femelle","2012-11-21","5 a 1 m 2 s 6 j ",5,61,1877,268,"Rex","Bareback","Topaze","Standard","s","v","qdfh","qdfg"]
[null,"Paris","2018-01-28","Standard","S","Vétéran mâle","VM","DEL","Roméo","Mâle","2015-10-17","2 a 3 m 1 s 5 j ",2,27,834,119,"Rex","Irish","Siamois","Dumbo","t","h","dffh","sdjh"]
[null,"Paris","2018-01-28","Standard","S","Vétéran mâle","VM","DEL","Nono","Mâle","2015-08-29","2 a 5 m ",2,28,883,126,"Velours","Variberk","Siamois","Standard","i","l","dqfshn","qdfh"]
[null,"Rome","2018-01-01","Standard","S","Vétéran mâle","VM","DEL","Fun","Mâle","2013-08-05","4 a 4 m 3 s 6 j ",4,52,1610,230,"Rex","Capé","Devil","Standard","o","n","qdfh","dj"]
[null,"Paris","2018-02-01","Standard","S","Vétéran mâle","VM","DEL","Jack","Mâle","2012-01-01","6 a 1 m 1 j ",6,73,2223,318,"Lisse","Capé","Albinos","Dumbo","a","d","qdf","s"]
[null,"Grenoble","2018-01-10","Standard","S","Sénior femelle","SF","DEL","Hiro","Femelle","2016-11-30","1 a 1 m 1 s 3 j ",1,13,406,58,"Lisse","Badger","Ambre","Standard","q","b","dqfh","sfj"]
[null,"Marseille","2018-01-12","Standard","S","Sénior mâle","SM","DEL","John","Mâle","2017-06-25","6 m 2 s 4 j ",0,6,201,29,"Lisse","Berkshire","Bleu US","Standard","ze","f","dqsfh","sdh"]
[null,"Bordeaux","2018-01-27","Standard","S","Sénior mâle","SM","DEL","Albert","Mâle","2016-12-13","1 a 1 m 2 s ",1,13,410,59,"Velours","Husky Roan","Lavande","Dumbo","y","j","s","wcfn"]
[null,null,null,null,null,null,null,null,"k",null,null,null,0,0,0,0,null,"Husky à bande"]
[]
[]
[]
[]
[]
[]
[]
[]
[1]

{"sheet":"PSM","index":17,"n_rows":21,"n_cols":24,"rows_kept":21,"cut":false,"hidden":false,"merged":[]}
["N°","LIEU","DATE","CLASSE","CLASSE abr","CATEGORIE","CATEGORIE abr","AFFIXE","NOM","SEXE","DATE DE NAISSANCE","Complet","Année","Mois","Jours","Semaine","TYPE DE POIL","MARQUAGE","COULEUR","TYPE D'OREILLES","PÈRE","MERE","PROVENANCE","PROPRIETAIRE"]
[null,"Marseille","2018-01-14","Standard","S","Vétéran femelle","VF","DEL","Juliet","Femelle","2015-09-15","2 a 3 m 4 s 2 j ",2,27,852,122,"Rex","Husky Roan","Albinos","Standard","r","g","qdfh","sdjh"]
[null,"Bordeaux","2018-01-28","Standard","S","Vétéran femelle","VF","DEL","Nana","Femelle","2014-01-26","4 a 2 j ",4,48,1463,209,"Velours","Uni","Dove","Dumbo","u","k","qdh","wcvb"]
[null,"Grenoble","2018-01-11","Standard","S","Vétéran femelle","VF","DEL","Mama","Femelle","2012-11-21","5 a 1 m 2 s 6 j ",5,61,1877,268,"Rex","Bareback","Topaze","Standard","s","v","qdfh","qdfg"]
[null,"Paris","2018-01-28","Standard","S","Vétéran mâle","VM","DEL","Roméo","Mâle","2015-10-17","2 a 3 m 1 s 5 j ",2,27,834,119,"Rex","Irish","Siamois","Dumbo","t","h","dffh","sdjh"]
[null,"Paris","2018-01-28","Standard","S","Vétéran mâle","VM","DEL","Nono","Mâle","2015-08-29","2 a 5 m ",2,28,883,126,"Velours","Variberk","Siamois","Standard","i","l","dqfshn","qdfh"]
[null,"Rome","2018-01-01","Standard","S","Vétéran mâle","VM","DEL","Fun","Mâle","2013-08-05","4 a 4 m 3 s 6 j ",4,52,1610,230,"Rex","Capé","Devil","Standard","o","n","qdfh","dj"]
[null,"Paris","2018-02-01","Standard","S","Vétéran mâle","VM","DEL","Jack","Mâle","2012-01-01","6 a 1 m 1 j ",6,73,2223,318,"Lisse","Capé","Albinos","Dumbo","a","d","qdf","s"]
[null,"Grenoble","2018-01-10","Standard","S","Sénior femelle","SF","DEL","Hiro","Femelle","2016-11-30","1 a 1 m 1 s 3 j ",1,13,406,58,"Lisse","Badger","Ambre","Standard","q","b","dqfh","sfj"]
[null,"Marseille","2018-01-12","Standard","S","Sénior mâle","SM","DEL","John","Mâle","2017-06-25","6 m 2 s 4 j ",0,6,201,29,"Lisse","Berkshire","Bleu US","Standard","ze","f","dqsfh","sdh"]
[null,"Bordeaux","2018-01-27","Standard","S","Sénior mâle","SM","DEL","Albert","Mâle","2016-12-13","1 a 1 m 2 s ",1,13,410,59,"Velours","Husky Roan","Lavande","Dumbo","y","j","s","wcfn"]
[null,null,null,null,null,null,null,null,"k",null,null,null,0,0,0,0,null,"Husky à bande"]
[]
[]
[]
[]
[]
[]
[]
[]
[1]

{"sheet":"PVF","index":18,"n_rows":21,"n_cols":24,"rows_kept":21,"cut":false,"hidden":false,"merged":[]}
["N°","LIEU","DATE","CLASSE","CLASSE abr","CATEGORIE","CATEGORIE abr","AFFIXE","NOM","SEXE","DATE DE NAISSANCE","Complet","Année","Mois","Jours","Semaine","TYPE DE POIL","MARQUAGE","COULEUR","TYPE D'OREILLES","PÈRE","MERE","PROVENANCE","PROPRIETAIRE"]
[null,"Marseille","2018-01-14","Standard","S","Vétéran femelle","VF","DEL","Juliet","Femelle","2015-09-15","2 a 3 m 4 s 2 j ",2,27,852,122,"Rex","Husky Roan","Albinos","Standard","r","g","qdfh","sdjh"]
[null,"Bordeaux","2018-01-28","Standard","S","Vétéran femelle","VF","DEL","Nana","Femelle","2014-01-26","4 a 2 j ",4,48,1463,209,"Velours","Uni","Dove","Dumbo","u","k","qdh","wcvb"]
[null,"Grenoble","2018-01-11","Standard","S","Vétéran femelle","VF","DEL","Mama","Femelle","2012-11-21","5 a 1 m 2 s 6 j ",5,61,1877,268,"Rex","Bareback","Topaze","Standard","s","v","qdfh","qdfg"]
[null,"Paris","2018-01-28","Standard","S","Vétéran mâle","VM","DEL","Roméo","Mâle","2015-10-17","2 a 3 m 1 s 5 j ",2,27,834,119,"Rex","Irish","Siamois","Dumbo","t","h","dffh","sdjh"]
[null,"Paris","2018-01-28","Standard","S","Vétéran mâle","VM","DEL","Nono","Mâle","2015-08-29","2 a 5 m ",2,28,883,126,"Velours","Variberk","Siamois","Standard","i","l","dqfshn","qdfh"]
[null,"Rome","2018-01-01","Standard","S","Vétéran mâle","VM","DEL","Fun","Mâle","2013-08-05","4 a 4 m 3 s 6 j ",4,52,1610,230,"Rex","Capé","Devil","Standard","o","n","qdfh","dj"]
[null,"Paris","2018-02-01","Standard","S","Vétéran mâle","VM","DEL","Jack","Mâle","2012-01-01","6 a 1 m 1 j ",6,73,2223,318,"Lisse","Capé","Albinos","Dumbo","a","d","qdf","s"]
[null,"Grenoble","2018-01-10","Standard","S","Sénior femelle","SF","DEL","Hiro","Femelle","2016-11-30","1 a 1 m 1 s 3 j ",1,13,406,58,"Lisse","Badger","Ambre","Standard","q","b","dqfh","sfj"]
[null,"Marseille","2018-01-12","Standard","S","Sénior mâle","SM","DEL","John","Mâle","2017-06-25","6 m 2 s 4 j ",0,6,201,29,"Lisse","Berkshire","Bleu US","Standard","ze","f","dqsfh","sdh"]
[null,"Bordeaux","2018-01-27","Standard","S","Sénior mâle","SM","DEL","Albert","Mâle","2016-12-13","1 a 1 m 2 s ",1,13,410,59,"Velours","Husky Roan","Lavande","Dumbo","y","j","s","wcfn"]
[null,null,null,null,null,null,null,null,"k",null,null,null,0,0,0,0,null,"Husky à bande"]
[]
[]
[]
[]
[]
[]
[]
[]
[1]

{"sheet":"PVM","index":19,"n_rows":21,"n_cols":24,"rows_kept":21,"cut":false,"hidden":false,"merged":[]}
["N°","LIEU","DATE","CLASSE","CLASSE abr","CATEGORIE","CATEGORIE abr","AFFIXE","NOM","SEXE","DATE DE NAISSANCE","Complet","Année","Mois","Jours","Semaine","TYPE DE POIL","MARQUAGE","COULEUR","TYPE D'OREILLES","PÈRE","MERE","PROVENANCE","PROPRIETAIRE"]
[null,"Marseille","2018-01-14","Standard","S","Vétéran femelle","VF","DEL","Juliet","Femelle","2015-09-15","2 a 3 m 4 s 2 j ",2,27,852,122,"Rex","Husky Roan","Albinos","Standard","r","g","qdfh","sdjh"]
[null,"Bordeaux","2018-01-28","Standard","S","Vétéran femelle","VF","DEL","Nana","Femelle","2014-01-26","4 a 2 j ",4,48,1463,209,"Velours","Uni","Dove","Dumbo","u","k","qdh","wcvb"]
[null,"Grenoble","2018-01-11","Standard","S","Vétéran femelle","VF","DEL","Mama","Femelle","2012-11-21","5 a 1 m 2 s 6 j ",5,61,1877,268,"Rex","Bareback","Topaze","Standard","s","v","qdfh","qdfg"]
[null,"Paris","2018-01-28","Standard","S","Vétéran mâle","VM","DEL","Roméo","Mâle","2015-10-17","2 a 3 m 1 s 5 j ",2,27,834,119,"Rex","Irish","Siamois","Dumbo","t","h","dffh","sdjh"]
[null,"Paris","2018-01-28","Standard","S","Vétéran mâle","VM","DEL","Nono","Mâle","2015-08-29","2 a 5 m ",2,28,883,126,"Velours","Variberk","Siamois","Standard","i","l","dqfshn","qdfh"]
[null,"Rome","2018-01-01","Standard","S","Vétéran mâle","VM","DEL","Fun","Mâle","2013-08-05","4 a 4 m 3 s 6 j ",4,52,1610,230,"Rex","Capé","Devil","Standard","o","n","qdfh","dj"]
[null,"Paris","2018-02-01","Standard","S","Vétéran mâle","VM","DEL","Jack","Mâle","2012-01-01","6 a 1 m 1 j ",6,73,2223,318,"Lisse","Capé","Albinos","Dumbo","a","d","qdf","s"]
[null,"Grenoble","2018-01-10","Standard","S","Sénior femelle","SF","DEL","Hiro","Femelle","2016-11-30","1 a 1 m 1 s 3 j ",1,13,406,58,"Lisse","Badger","Ambre","Standard","q","b","dqfh","sfj"]
[null,"Marseille","2018-01-12","Standard","S","Sénior mâle","SM","DEL","John","Mâle","2017-06-25","6 m 2 s 4 j ",0,6,201,29,"Lisse","Berkshire","Bleu US","Standard","ze","f","dqsfh","sdh"]
[null,"Bordeaux","2018-01-27","Standard","S","Sénior mâle","SM","DEL","Albert","Mâle","2016-12-13","1 a 1 m 2 s ",1,13,410,59,"Velours","Husky Roan","Lavande","Dumbo","y","j","s","wcfn"]
[null,null,null,null,null,null,null,null,"k",null,null,null,0,0,0,0,null,"Husky à bande"]
[]
[]
[]
[]
[]
[]
[]
[]
[1]

{"sheet":"AJF","index":20,"n_rows":21,"n_cols":24,"rows_kept":21,"cut":false,"hidden":false,"merged":[]}
["N°","LIEU","DATE","CLASSE","CLASSE abr","CATEGORIE","CATEGORIE abr","AFFIXE","NOM","SEXE","DATE DE NAISSANCE","Complet","Année","Mois","Jours","Semaine","TYPE DE POIL","MARQUAGE","COULEUR","TYPE D'OREILLES","PÈRE","MERE","PROVENANCE","PROPRIETAIRE"]
[null,"Marseille","2018-01-14","Standard","S","Vétéran femelle","VF","DEL","Juliet","Femelle","2015-09-15","2 a 3 m 4 s 2 j ",2,27,852,122,"Rex","Husky Roan","Albinos","Standard","r","g","qdfh","sdjh"]
[null,"Bordeaux","2018-01-28","Standard","S","Vétéran femelle","VF","DEL","Nana","Femelle","2014-01-26","4 a 2 j ",4,48,1463,209,"Velours","Uni","Dove","Dumbo","u","k","qdh","wcvb"]
[null,"Grenoble","2018-01-11","Standard","S","Vétéran femelle","VF","DEL","Mama","Femelle","2012-11-21","5 a 1 m 2 s 6 j ",5,61,1877,268,"Rex","Bareback","Topaze","Standard","s","v","qdfh","qdfg"]
[null,"Paris","2018-01-28","Standard","S","Vétéran mâle","VM","DEL","Roméo","Mâle","2015-10-17","2 a 3 m 1 s 5 j ",2,27,834,119,"Rex","Irish","Siamois","Dumbo","t","h","dffh","sdjh"]
[null,"Paris","2018-01-28","Standard","S","Vétéran mâle","VM","DEL","Nono","Mâle","2015-08-29","2 a 5 m ",2,28,883,126,"Velours","Variberk","Siamois","Standard","i","l","dqfshn","qdfh"]
[null,"Rome","2018-01-01","Standard","S","Vétéran mâle","VM","DEL","Fun","Mâle","2013-08-05","4 a 4 m 3 s 6 j ",4,52,1610,230,"Rex","Capé","Devil","Standard","o","n","qdfh","dj"]
[null,"Paris","2018-02-01","Standard","S","Vétéran mâle","VM","DEL","Jack","Mâle","2012-01-01","6 a 1 m 1 j ",6,73,2223,318,"Lisse","Capé","Albinos","Dumbo","a","d","qdf","s"]
[null,"Grenoble","2018-01-10","Standard","S","Sénior femelle","SF","DEL","Hiro","Femelle","2016-11-30","1 a 1 m 1 s 3 j ",1,13,406,58,"Lisse","Badger","Ambre","Standard","q","b","dqfh","sfj"]
[null,"Marseille","2018-01-12","Standard","S","Sénior mâle","SM","DEL","John","Mâle","2017-06-25","6 m 2 s 4 j ",0,6,201,29,"Lisse","Berkshire","Bleu US","Standard","ze","f","dqsfh","sdh"]
[null,"Bordeaux","2018-01-27","Standard","S","Sénior mâle","SM","DEL","Albert","Mâle","2016-12-13","1 a 1 m 2 s ",1,13,410,59,"Velours","Husky Roan","Lavande","Dumbo","y","j","s","wcfn"]
[null,null,null,null,null,null,null,null,"k",null,null,null,0,0,0,0,null,"Husky à bande"]
[]
[]
[]
[]
[]
[]
[]
[]
[1]

{"sheet":"AJM","index":21,"n_rows":21,"n_cols":24,"rows_kept":21,"cut":false,"hidden":false,"merged":[]}
["N°","LIEU","DATE","CLASSE","CLASSE abr","CATEGORIE","CATEGORIE abr","AFFIXE","NOM","SEXE","DATE DE NAISSANCE","Complet","Année","Mois","Jours","Semaine","TYPE DE POIL","MARQUAGE","COULEUR","TYPE D'OREILLES","PÈRE","MERE","PROVENANCE","PROPRIETAIRE"]
[null,"Marseille","2018-01-14","Standard","S","Vétéran femelle","VF","DEL","Juliet","Femelle","2015-09-15","2 a 3 m 4 s 2 j ",2,27,852,122,"Rex","Husky Roan","Albinos","Standard","r","g","qdfh","sdjh"]
[null,"Bordeaux","2018-01-28","Standard","S","Vétéran femelle","VF","DEL","Nana","Femelle","2014-01-26","4 a 2 j ",4,48,1463,209,"Velours","Uni","Dove","Dumbo","u","k","qdh","wcvb"]
[null,"Grenoble","2018-01-11","Standard","S","Vétéran femelle","VF","DEL","Mama","Femelle","2012-11-21","5 a 1 m 2 s 6 j ",5,61,1877,268,"Rex","Bareback","Topaze","Standard","s","v","qdfh","qdfg"]
[null,"Paris","2018-01-28","Standard","S","Vétéran mâle","VM","DEL","Roméo","Mâle","2015-10-17","2 a 3 m 1 s 5 j ",2,27,834,119,"Rex","Irish","Siamois","Dumbo","t","h","dffh","sdjh"]
[null,"Paris","2018-01-28","Standard","S","Vétéran mâle","VM","DEL","Nono","Mâle","2015-08-29","2 a 5 m ",2,28,883,126,"Velours","Variberk","Siamois","Standard","i","l","dqfshn","qdfh"]
[null,"Rome","2018-01-01","Standard","S","Vétéran mâle","VM","DEL","Fun","Mâle","2013-08-05","4 a 4 m 3 s 6 j ",4,52,1610,230,"Rex","Capé","Devil","Standard","o","n","qdfh","dj"]
[null,"Paris","2018-02-01","Standard","S","Vétéran mâle","VM","DEL","Jack","Mâle","2012-01-01","6 a 1 m 1 j ",6,73,2223,318,"Lisse","Capé","Albinos","Dumbo","a","d","qdf","s"]
[null,"Grenoble","2018-01-10","Standard","S","Sénior femelle","SF","DEL","Hiro","Femelle","2016-11-30","1 a 1 m 1 s 3 j ",1,13,406,58,"Lisse","Badger","Ambre","Standard","q","b","dqfh","sfj"]
[null,"Marseille","2018-01-12","Standard","S","Sénior mâle","SM","DEL","John","Mâle","2017-06-25","6 m 2 s 4 j ",0,6,201,29,"Lisse","Berkshire","Bleu US","Standard","ze","f","dqsfh","sdh"]
[null,"Bordeaux","2018-01-27","Standard","S","Sénior mâle","SM","DEL","Albert","Mâle","2016-12-13","1 a 1 m 2 s ",1,13,410,59,"Velours","Husky Roan","Lavande","Dumbo","y","j","s","wcfn"]
[null,null,null,null,null,null,null,null,"k",null,null,null,0,0,0,0,null,"Husky à bande"]
[]
[]
[]
[]
[]
[]
[]
[]
[1]

{"sheet":"ASF","index":22,"n_rows":21,"n_cols":24,"rows_kept":21,"cut":false,"hidden":false,"merged":[]}
["N°","LIEU","DATE","CLASSE","CLASSE abr","CATEGORIE","CATEGORIE abr","AFFIXE","NOM","SEXE","DATE DE NAISSANCE","Complet","Année","Mois","Jours","Semaine","TYPE DE POIL","MARQUAGE","COULEUR","TYPE D'OREILLES","PÈRE","MERE","PROVENANCE","PROPRIETAIRE"]
[null,"Marseille","2018-01-14","Standard","S","Vétéran femelle","VF","DEL","Juliet","Femelle","2015-09-15","2 a 3 m 4 s 2 j ",2,27,852,122,"Rex","Husky Roan","Albinos","Standard","r","g","qdfh","sdjh"]
[null,"Bordeaux","2018-01-28","Standard","S","Vétéran femelle","VF","DEL","Nana","Femelle","2014-01-26","4 a 2 j ",4,48,1463,209,"Velours","Uni","Dove","Dumbo","u","k","qdh","wcvb"]
[null,"Grenoble","2018-01-11","Standard","S","Vétéran femelle","VF","DEL","Mama","Femelle","2012-11-21","5 a 1 m 2 s 6 j ",5,61,1877,268,"Rex","Bareback","Topaze","Standard","s","v","qdfh","qdfg"]
[null,"Paris","2018-01-28","Standard","S","Vétéran mâle","VM","DEL","Roméo","Mâle","2015-10-17","2 a 3 m 1 s 5 j ",2,27,834,119,"Rex","Irish","Siamois","Dumbo","t","h","dffh","sdjh"]
[null,"Paris","2018-01-28","Standard","S","Vétéran mâle","VM","DEL","Nono","Mâle","2015-08-29","2 a 5 m ",2,28,883,126,"Velours","Variberk","Siamois","Standard","i","l","dqfshn","qdfh"]
[null,"Rome","2018-01-01","Standard","S","Vétéran mâle","VM","DEL","Fun","Mâle","2013-08-05","4 a 4 m 3 s 6 j ",4,52,1610,230,"Rex","Capé","Devil","Standard","o","n","qdfh","dj"]
[null,"Paris","2018-02-01","Standard","S","Vétéran mâle","VM","DEL","Jack","Mâle","2012-01-01","6 a 1 m 1 j ",6,73,2223,318,"Lisse","Capé","Albinos","Dumbo","a","d","qdf","s"]
[null,"Grenoble","2018-01-10","Standard","S","Sénior femelle","SF","DEL","Hiro","Femelle","2016-11-30","1 a 1 m 1 s 3 j ",1,13,406,58,"Lisse","Badger","Ambre","Standard","q","b","dqfh","sfj"]
[null,"Marseille","2018-01-12","Standard","S","Sénior mâle","SM","DEL","John","Mâle","2017-06-25","6 m 2 s 4 j ",0,6,201,29,"Lisse","Berkshire","Bleu US","Standard","ze","f","dqsfh","sdh"]
[null,"Bordeaux","2018-01-27","Standard","S","Sénior mâle","SM","DEL","Albert","Mâle","2016-12-13","1 a 1 m 2 s ",1,13,410,59,"Velours","Husky Roan","Lavande","Dumbo","y","j","s","wcfn"]
[null,null,null,null,null,null,null,null,"k",null,null,null,0,0,0,0,null,"Husky à bande"]
[]
[]
[]
[]
[]
[]
[]
[]
[1]

{"sheet":"ASM","index":23,"n_rows":21,"n_cols":24,"rows_kept":21,"cut":false,"hidden":false,"merged":[]}
["N°","LIEU","DATE","CLASSE","CLASSE abr","CATEGORIE","CATEGORIE abr","AFFIXE","NOM","SEXE","DATE DE NAISSANCE","Complet","Année","Mois","Jours","Semaine","TYPE DE POIL","MARQUAGE","COULEUR","TYPE D'OREILLES","PÈRE","MERE","PROVENANCE","PROPRIETAIRE"]
[null,"Marseille","2018-01-14","Standard","S","Vétéran femelle","VF","DEL","Juliet","Femelle","2015-09-15","2 a 3 m 4 s 2 j ",2,27,852,122,"Rex","Husky Roan","Albinos","Standard","r","g","qdfh","sdjh"]
[null,"Bordeaux","2018-01-28","Standard","S","Vétéran femelle","VF","DEL","Nana","Femelle","2014-01-26","4 a 2 j ",4,48,1463,209,"Velours","Uni","Dove","Dumbo","u","k","qdh","wcvb"]
[null,"Grenoble","2018-01-11","Standard","S","Vétéran femelle","VF","DEL","Mama","Femelle","2012-11-21","5 a 1 m 2 s 6 j ",5,61,1877,268,"Rex","Bareback","Topaze","Standard","s","v","qdfh","qdfg"]
[null,"Paris","2018-01-28","Standard","S","Vétéran mâle","VM","DEL","Roméo","Mâle","2015-10-17","2 a 3 m 1 s 5 j ",2,27,834,119,"Rex","Irish","Siamois","Dumbo","t","h","dffh","sdjh"]
[null,"Paris","2018-01-28","Standard","S","Vétéran mâle","VM","DEL","Nono","Mâle","2015-08-29","2 a 5 m ",2,28,883,126,"Velours","Variberk","Siamois","Standard","i","l","dqfshn","qdfh"]
[null,"Rome","2018-01-01","Standard","S","Vétéran mâle","VM","DEL","Fun","Mâle","2013-08-05","4 a 4 m 3 s 6 j ",4,52,1610,230,"Rex","Capé","Devil","Standard","o","n","qdfh","dj"]
[null,"Paris","2018-02-01","Standard","S","Vétéran mâle","VM","DEL","Jack","Mâle","2012-01-01","6 a 1 m 1 j ",6,73,2223,318,"Lisse","Capé","Albinos","Dumbo","a","d","qdf","s"]
[null,"Grenoble","2018-01-10","Standard","S","Sénior femelle","SF","DEL","Hiro","Femelle","2016-11-30","1 a 1 m 1 s 3 j ",1,13,406,58,"Lisse","Badger","Ambre","Standard","q","b","dqfh","sfj"]
[null,"Marseille","2018-01-12","Standard","S","Sénior mâle","SM","DEL","John","Mâle","2017-06-25","6 m 2 s 4 j ",0,6,201,29,"Lisse","Berkshire","Bleu US","Standard","ze","f","dqsfh","sdh"]
[null,"Bordeaux","2018-01-27","Standard","S","Sénior mâle","SM","DEL","Albert","Mâle","2016-12-13","1 a 1 m 2 s ",1,13,410,59,"Velours","Husky Roan","Lavande","Dumbo","y","j","s","wcfn"]
[null,null,null,null,null,null,null,null,"k",null,null,null,0,0,0,0,null,"Husky à bande"]
[]
[]
[]
[]
[]
[]
[]
[]
[1]

{"sheet":"AVF","index":24,"n_rows":21,"n_cols":24,"rows_kept":21,"cut":false,"hidden":false,"merged":[]}
["N°","LIEU","DATE","CLASSE","CLASSE abr","CATEGORIE","CATEGORIE abr","AFFIXE","NOM","SEXE","DATE DE NAISSANCE","Complet","Année","Mois","Jours","Semaine","TYPE DE POIL","MARQUAGE","COULEUR","TYPE D'OREILLES","PÈRE","MERE","PROVENANCE","PROPRIETAIRE"]
[null,"Marseille","2018-01-14","Standard","S","Vétéran femelle","VF","DEL","Juliet","Femelle","2015-09-15","2 a 3 m 4 s 2 j ",2,27,852,122,"Rex","Husky Roan","Albinos","Standard","r","g","qdfh","sdjh"]
[null,"Bordeaux","2018-01-28","Standard","S","Vétéran femelle","VF","DEL","Nana","Femelle","2014-01-26","4 a 2 j ",4,48,1463,209,"Velours","Uni","Dove","Dumbo","u","k","qdh","wcvb"]
[null,"Grenoble","2018-01-11","Standard","S","Vétéran femelle","VF","DEL","Mama","Femelle","2012-11-21","5 a 1 m 2 s 6 j ",5,61,1877,268,"Rex","Bareback","Topaze","Standard","s","v","qdfh","qdfg"]
[null,"Paris","2018-01-28","Standard","S","Vétéran mâle","VM","DEL","Roméo","Mâle","2015-10-17","2 a 3 m 1 s 5 j ",2,27,834,119,"Rex","Irish","Siamois","Dumbo","t","h","dffh","sdjh"]
[null,"Paris","2018-01-28","Standard","S","Vétéran mâle","VM","DEL","Nono","Mâle","2015-08-29","2 a 5 m ",2,28,883,126,"Velours","Variberk","Siamois","Standard","i","l","dqfshn","qdfh"]
[null,"Rome","2018-01-01","Standard","S","Vétéran mâle","VM","DEL","Fun","Mâle","2013-08-05","4 a 4 m 3 s 6 j ",4,52,1610,230,"Rex","Capé","Devil","Standard","o","n","qdfh","dj"]
[null,"Paris","2018-02-01","Standard","S","Vétéran mâle","VM","DEL","Jack","Mâle","2012-01-01","6 a 1 m 1 j ",6,73,2223,318,"Lisse","Capé","Albinos","Dumbo","a","d","qdf","s"]
[null,"Grenoble","2018-01-10","Standard","S","Sénior femelle","SF","DEL","Hiro","Femelle","2016-11-30","1 a 1 m 1 s 3 j ",1,13,406,58,"Lisse","Badger","Ambre","Standard","q","b","dqfh","sfj"]
[null,"Marseille","2018-01-12","Standard","S","Sénior mâle","SM","DEL","John","Mâle","2017-06-25","6 m 2 s 4 j ",0,6,201,29,"Lisse","Berkshire","Bleu US","Standard","ze","f","dqsfh","sdh"]
[null,"Bordeaux","2018-01-27","Standard","S","Sénior mâle","SM","DEL","Albert","Mâle","2016-12-13","1 a 1 m 2 s ",1,13,410,59,"Velours","Husky Roan","Lavande","Dumbo","y","j","s","wcfn"]
[null,null,null,null,null,null,null,null,"k",null,null,null,0,0,0,0,null,"Husky à bande"]
[]
[]
[]
[]
[]
[]
[]
[]
[1]

{"sheet":"AVM","index":25,"n_rows":21,"n_cols":24,"rows_kept":21,"cut":false,"hidden":false,"merged":[]}
["N°","LIEU","DATE","CLASSE","CLASSE abr","CATEGORIE","CATEGORIE abr","AFFIXE","NOM","SEXE","DATE DE NAISSANCE","Complet","Année","Mois","Jours","Semaine","TYPE DE POIL","MARQUAGE","COULEUR","TYPE D'OREILLES","PÈRE","MERE","PROVENANCE","PROPRIETAIRE"]
[null,"Marseille","2018-01-14","Standard","S","Vétéran femelle","VF","DEL","Juliet","Femelle","2015-09-15","2 a 3 m 4 s 2 j ",2,27,852,122,"Rex","Husky Roan","Albinos","Standard","r","g","qdfh","sdjh"]
[null,"Bordeaux","2018-01-28","Standard","S","Vétéran femelle","VF","DEL","Nana","Femelle","2014-01-26","4 a 2 j ",4,48,1463,209,"Velours","Uni","Dove","Dumbo","u","k","qdh","wcvb"]
[null,"Grenoble","2018-01-11","Standard","S","Vétéran femelle","VF","DEL","Mama","Femelle","2012-11-21","5 a 1 m 2 s 6 j ",5,61,1877,268,"Rex","Bareback","Topaze","Standard","s","v","qdfh","qdfg"]
[null,"Paris","2018-01-28","Standard","S","Vétéran mâle","VM","DEL","Roméo","Mâle","2015-10-17","2 a 3 m 1 s 5 j ",2,27,834,119,"Rex","Irish","Siamois","Dumbo","t","h","dffh","sdjh"]
[null,"Paris","2018-01-28","Standard","S","Vétéran mâle","VM","DEL","Nono","Mâle","2015-08-29","2 a 5 m ",2,28,883,126,"Velours","Variberk","Siamois","Standard","i","l","dqfshn","qdfh"]
[null,"Rome","2018-01-01","Standard","S","Vétéran mâle","VM","DEL","Fun","Mâle","2013-08-05","4 a 4 m 3 s 6 j ",4,52,1610,230,"Rex","Capé","Devil","Standard","o","n","qdfh","dj"]
[null,"Paris","2018-02-01","Standard","S","Vétéran mâle","VM","DEL","Jack","Mâle","2012-01-01","6 a 1 m 1 j ",6,73,2223,318,"Lisse","Capé","Albinos","Dumbo","a","d","qdf","s"]
[null,"Grenoble","2018-01-10","Standard","S","Sénior femelle","SF","DEL","Hiro","Femelle","2016-11-30","1 a 1 m 1 s 3 j ",1,13,406,58,"Lisse","Badger","Ambre","Standard","q","b","dqfh","sfj"]
[null,"Marseille","2018-01-12","Standard","S","Sénior mâle","SM","DEL","John","Mâle","2017-06-25","6 m 2 s 4 j ",0,6,201,29,"Lisse","Berkshire","Bleu US","Standard","ze","f","dqsfh","sdh"]
[null,"Bordeaux","2018-01-27","Standard","S","Sénior mâle","SM","DEL","Albert","Mâle","2016-12-13","1 a 1 m 2 s ",1,13,410,59,"Velours","Husky Roan","Lavande","Dumbo","y","j","s","wcfn"]
[null,null,null,null,null,null,null,null,"k",null,null,null,0,0,0,0,null,"Husky à bande"]
[]
[]
[]
[]
[]
[]
[]
[]
[1]

{"sheet":"Catalogue","index":26,"n_rows":91,"n_cols":3,"rows_kept":91,"cut":false,"hidden":false,"merged":[[0,0,0,6],[3,2,3,4],[5,2,5,4]]}
["CATALOGUE SHOW"]
[]
[]
[null,"Lieu",{"$f":"Accueil!G18","v":"Paris"}]
[]
[null,"Date",{"$f":"Accueil!G21","v":"2018-01-28"}]
[]
[]
[]
[]
[]
[null,null,"Faire page de présentation ici"]
[]
[]
[]
[]
[]
[]
[]
[]
[]
[]
[]
[]
[]
[]
[]
[]
[]
[]
[]
[]
[]
[]
[]
[]
[]
[]
[]
[]
[]
[]
[]
[]
[null,"mettre une page de règlementation"]
[]
[]
[]
[]
[]
[]
[]
[]
[]
[]
[]
[]
[]
[]
[]
[]
[]
[]
[]
[]
[]
[]
[]
[]
[]
[]
[]
[]
[]
[]
[]
[]
[]
[]
[]
[]
[]
[]
[]
[]
[]
[]
[]
[]
[]
["mettre une page de pub"]

{"sheet":"Tableau de données","index":27,"n_rows":48,"n_cols":43,"rows_kept":48,"cut":false,"hidden":false,"merged":[[0,2,1,2],[0,3,1,3],[0,7,1,7],[0,8,1,8],[0,0,1,0],[0,1,1,1],[0,4,1,4],[0,5,1,5],[0,6,1,6]],"read":"row_number_cap"}
["CLASSE","CLASSE abr","CATEGORIE","CATEGORIE abr","SEXE","TYPE DE POIL","MARQUAGE","COULEUR","TYPE D'OREILLES",null,"Feuille",{"$f":"'Tableau de saisie'!$B$1","v":"LIEU"},{"$f":"'Tableau de saisie'!$C$1","v":"DATE"},{"$f":"'Tableau de saisie'!$D$1","v":"CLASSE"},{"$f":"'Tableau de saisie'!$E$1","v":"CLASSE abr"},{"$f":"'Tableau de saisie'!$F$1","v":"CATEGORIE"},{"$f":"'Tableau de saisie'!$G$1","v":"CATEGORIE abr"},{"$f":"'Tableau de saisie'!$H$1","v":"AFFIXE"},{"$f":"'Tableau de saisie'!$I$1","v":"NOM"},{"$f":"'Tableau de saisie'!$J$1","v":"SEXE"},{"$f":"'Tableau de saisie'!$K$1","v":"DATE DE NAISSANCE"},{"$f":"'Tableau de saisie'!$L$1","v":"Complet"},{"$f":"'Tableau de saisie'!$M$1","v":"Année"},{"$f":"'Tableau de saisie'!$N$1","v":"Mois"},{"$f":"'Tableau de saisie'!$O$1","v":"Jours"},{"$f":"'Tableau de saisie'!$P$1","v":"Semaine"},{"$f":"'Tableau de saisie'!$Q$1","v":"TYPE DE POIL"},{"$f":"'Tableau de saisie'!$R$1","v":"MARQUAGE"},{"$f":"'Tableau de saisie'!$S$1","v":"COULEUR"},{"$f":"'Tableau de saisie'!$T$1","v":"TYPE D'OREILLES"},{"$f":"'Tableau de saisie'!$U$1","v":"PÈRE"},{"$f":"'Tableau de saisie'!$V$1","v":"MERE"},{"$f":"'Tableau de saisie'!$W$1","v":"PROVENANCE"},{"$f":"'Tableau de saisie'!$X$1","v":"PROPRIETAIRE"},null,"LIEU",null,"Paris","Marseille","Bordeaux","Rome","Grenoble"]
[null,null,null,null,null,null,null,null,null,null,"SJF",{"$f":"Lieu","v":"Paris"},{"$f":"Dateshow","v":"2018-01-28"},null,"S",null,"JF",null,null,null,null,null,null,null,null,null,null,null,null,null,null,null,null,null,null,"Bordeaux","Paris","2018-02-01","2018-01-12","2018-01-27","2018-01-01","2018-01-10","00:00:00"]
["Agility","A","Junior femelle","JF","Femelle","Lisse","Badger","Agouti","Dumbo",null,"Feuille",{"$f":"'Tableau de saisie'!$B$1","v":"LIEU"},{"$f":"'Tableau de saisie'!$C$1","v":"DATE"},{"$f":"'Tableau de saisie'!$D$1","v":"CLASSE"},{"$f":"'Tableau de saisie'!$E$1","v":"CLASSE abr"},{"$f":"'Tableau de saisie'!$F$1","v":"CATEGORIE"},{"$f":"'Tableau de saisie'!$G$1","v":"CATEGORIE abr"},{"$f":"'Tableau de saisie'!$H$1","v":"AFFIXE"},{"$f":"'Tableau de saisie'!$I$1","v":"NOM"},{"$f":"'Tableau de saisie'!$J$1","v":"SEXE"},{"$f":"'Tableau de saisie'!$K$1","v":"DATE DE NAISSANCE"},{"$f":"'Tableau de saisie'!$L$1","v":"Complet"},{"$f":"'Tableau de saisie'!$M$1","v":"Année"},{"$f":"'Tableau de saisie'!$N$1","v":"Mois"},{"$f":"'Tableau de saisie'!$O$1","v":"Jours"},{"$f":"'Tableau de saisie'!$P$1","v":"Semaine"},{"$f":"'Tableau de saisie'!$Q$1","v":"TYPE DE POIL"},{"$f":"'Tableau de saisie'!$R$1","v":"MARQUAGE"},{"$f":"'Tableau de saisie'!$S$1","v":"COULEUR"},{"$f":"'Tableau de saisie'!$T$1","v":"TYPE D'OREILLES"},{"$f":"'Tableau de saisie'!$U$1","v":"PÈRE"},{"$f":"'Tableau de saisie'!$V$1","v":"MERE"},{"$f":"'Tableau de saisie'!$W$1","v":"PROVENANCE"},{"$f":"'Tableau de saisie'!$X$1","v":"PROPRIETAIRE"},null,"Grenoble","Marseille","2018-01-28","2018-01-14","2018-01-28","2018-01-11","2018-01-11"]
["Pet","P","Junior mâle","JM","Mâle","Rex","Bareback","Albinos","Standard",null,"SJM",{"$f":"Lieu","v":"Paris"},{"$f":"Dateshow","v":"2018-01-28"},null,"S",null,"JM",null,null,null,null,null,null,null,null,null,null,null,null,null,null,null,null,null,null,"Marseille","Bordeaux"]
["Standard","S","Senior femelle","SF",null,"Velours","Berkshire","Ambre",null,null,"Feuille",{"$f":"'Tableau de saisie'!$B$1","v":"LIEU"},{"$f":"'Tableau de saisie'!$C$1","v":"DATE"},{"$f":"'Tableau de saisie'!$D$1","v":"CLASSE"},{"$f":"'Tableau de saisie'!$E$1","v":"CLASSE abr"},{"$f":"'Tableau de saisie'!$F$1","v":"CATEGORIE"},{"$f":"'Tableau de saisie'!$G$1","v":"CATEGORIE abr"},{"$f":"'Tableau de saisie'!$H$1","v":"AFFIXE"},{"$f":"'Tableau de saisie'!$I$1","v":"NOM"},{"$f":"'Tableau de saisie'!$J$1","v":"SEXE"},{"$f":"'Tableau de saisie'!$K$1","v":"DATE DE NAISSANCE"},{"$f":"'Tableau de saisie'!$L$1","v":"Complet"},{"$f":"'Tableau de saisie'!$M$1","v":"Année"},{"$f":"'Tableau de saisie'!$N$1","v":"Mois"},{"$f":"'Tableau de saisie'!$O$1","v":"Jours"},{"$f":"'Tableau de saisie'!$P$1","v":"Semaine"},{"$f":"'Tableau de saisie'!$Q$1","v":"TYPE DE POIL"},{"$f":"'Tableau de saisie'!$R$1","v":"MARQUAGE"},{"$f":"'Tableau de saisie'!$S$1","v":"COULEUR"},{"$f":"'Tableau de saisie'!$T$1","v":"TYPE D'OREILLES"},{"$f":"'Tableau de saisie'!$U$1","v":"PÈRE"},{"$f":"'Tableau de saisie'!$V$1","v":"MERE"},{"$f":"'Tableau de saisie'!$W$1","v":"PROVENANCE"},{"$f":"'Tableau de saisie'!$X$1","v":"PROPRIETAIRE"},null,"Paris","Rome"]
[null,null,"Senior mâle","SM",null,null,"Capé","Beige",null,null,"SSF",{"$f":"Lieu","v":"Paris"},{"$f":"Dateshow","v":"2018-01-28"},null,"S",null,"SF",null,null,null,null,null,null,null,null,null,null,null,null,null,null,null,null,null,null,"Rome","Grenoble"]
[null,null,"Vétéran femelle","VF",null,null,"Hooded","Bleu Russe",null,null,"Feuille",{"$f":"'Tableau de saisie'!$B$1","v":"LIEU"},{"$f":"'Tableau de saisie'!$C$1","v":"DATE"},{"$f":"'Tableau de saisie'!$D$1","v":"CLASSE"},{"$f":"'Tableau de saisie'!$E$1","v":"CLASSE abr"},{"$f":"'Tableau de saisie'!$F$1","v":"CATEGORIE"},{"$f":"'Tableau de saisie'!$G$1","v":"CATEGORIE abr"},{"$f":"'Tableau de saisie'!$H$1","v":"AFFIXE"},{"$f":"'Tableau de saisie'!$I$1","v":"NOM"},{"$f":"'Tableau de saisie'!$J$1","v":"SEXE"},{"$f":"'Tableau de saisie'!$K$1","v":"DATE DE NAISSANCE"},{"$f":"'Tableau de saisie'!$L$1","v":"Complet"},{"$f":"'Tableau de saisie'!$M$1","v":"Année"},{"$f":"'Tableau de saisie'!$N$1","v":"Mois"},{"$f":"'Tableau de saisie'!$O$1","v":"Jours"},{"$f":"'Tableau de saisie'!$P$1","v":"Semaine"},{"$f":"'Tableau de saisie'!$Q$1","v":"TYPE DE POIL"},{"$f":"'Tableau de saisie'!$R$1","v":"MARQUAGE"},{"$f":"'Tableau de saisie'!$S$1","v":"COULEUR"},{"$f":"'Tableau de saisie'!$T$1","v":"TYPE D'OREILLES"},{"$f":"'Tableau de saisie'!$U$1","v":"PÈRE"},{"$f":"'Tableau de saisie'!$V$1","v":"MERE"},{"$f":"'Tableau de saisie'!$W$1","v":"PROVENANCE"},{"$f":"'Tableau de saisie'!$X$1","v":"PROPRIETAIRE"}]
[null,null,"Vétéran mâle","VM",null,null,"Husky à bande","Bleu Russe Agouti",null,null,"SSM",{"$f":"Lieu","v":"Paris"},{"$f":"Dateshow","v":"2018-01-28"},null,"S",null,"SM"]
[null,null,null,null,null,null,"Husky Roan","Bleu US",null,null,"Feuille",{"$f":"'Tableau de saisie'!$B$1","v":"LIEU"},{"$f":"'Tableau de saisie'!$C$1","v":"DATE"},{"$f":"'Tableau de saisie'!$D$1","v":"CLASSE"},{"$f":"'Tableau de saisie'!$E$1","v":"CLASSE abr"},{"$f":"'Tableau de saisie'!$F$1","v":"CATEGORIE"},{"$f":"'Tableau de saisie'!$G$1","v":"CATEGORIE abr"},{"$f":"'Tableau de saisie'!$H$1","v":"AFFIXE"},{"$f":"'Tableau de saisie'!$I$1","v":"NOM"},{"$f":"'Tableau de saisie'!$J$1","v":"SEXE"},{"$f":"'Tableau de saisie'!$K$1","v":"DATE DE NAISSANCE"},{"$f":"'Tableau de saisie'!$L$1","v":"Complet"},{"$f":"'Tableau de saisie'!$M$1","v":"Année"},{"$f":"'Tableau de saisie'!$N$1","v":"Mois"},{"$f":"'Tableau de saisie'!$O$1","v":"Jours"},{"$f":"'Tableau de saisie'!$P$1","v":"Semaine"},{"$f":"'Tableau de saisie'!$Q$1","v":"TYPE DE POIL"},{"$f":"'Tableau de saisie'!$R$1","v":"MARQUAGE"},{"$f":"'Tableau de saisie'!$S$1","v":"COULEUR"},{"$f":"'Tableau de saisie'!$T$1","v":"TYPE D'OREILLES"},{"$f":"'Tableau de saisie'!$U$1","v":"PÈRE"},{"$f":"'Tableau de saisie'!$V$1","v":"MERE"},{"$f":"'Tableau de saisie'!$W$1","v":"PROVENANCE"},{"$f":"'Tableau de saisie'!$X$1","v":"PROPRIETAIRE"}]
[null,null,null,null,null,null,"Irish","Bleu US Agouti",null,null,"SVF",{"$f":"Lieu","v":"Paris"},{"$f":"Dateshow","v":"2018-01-28"},null,"S",null,"VF"]
[null,null,null,null,null,null,"Uni","Burmese",null,null,"Feuille",{"$f":"'Tableau de saisie'!$B$1","v":"LIEU"},{"$f":"'Tableau de saisie'!$C$1","v":"DATE"},{"$f":"'Tableau de saisie'!$D$1","v":"CLASSE"},{"$f":"'Tableau de saisie'!$E$1","v":"CLASSE abr"},{"$f":"'Tableau de saisie'!$F$1","v":"CATEGORIE"},{"$f":"'Tableau de saisie'!$G$1","v":"CATEGORIE abr"},{"$f":"'Tableau de saisie'!$H$1","v":"AFFIXE"},{"$f":"'Tableau de saisie'!$I$1","v":"NOM"},{"$f":"'Tableau de saisie'!$J$1","v":"SEXE"},{"$f":"'Tableau de saisie'!$K$1","v":"DATE DE NAISSANCE"},{"$f":"'Tableau de saisie'!$L$1","v":"Complet"},{"$f":"'Tableau de saisie'!$M$1","v":"Année"},{"$f":"'Tableau de saisie'!$N$1","v":"Mois"},{"$f":"'Tableau de saisie'!$O$1","v":"Jours"},{"$f":"'Tableau de saisie'!$P$1","v":"Semaine"},{"$f":"'Tableau de saisie'!$Q$1","v":"TYPE DE POIL"},{"$f":"'Tableau de saisie'!$R$1","v":"MARQUAGE"},{"$f":"'Tableau de saisie'!$S$1","v":"COULEUR"},{"$f":"'Tableau de saisie'!$T$1","v":"TYPE D'OREILLES"},{"$f":"'Tableau de saisie'!$U$1","v":"PÈRE"},{"$f":"'Tableau de saisie'!$V$1","v":"MERE"},{"$f":"'Tableau de saisie'!$W$1","v":"PROVENANCE"},{"$f":"'Tableau de saisie'!$X$1","v":"PROPRIETAIRE"}]
[null,null,null,null,null,null,"Variberk","Cannelle",null,null,"SVM",{"$f":"Lieu","v":"Paris"},{"$f":"Dateshow","v":"2018-01-28"},null,"S",null,"VM"]
[null,null,null,null,null,null,null,"Champagne",null,null,"Feuille",{"$f":"'Tableau de saisie'!$B$1","v":"LIEU"},{"$f":"'Tableau de saisie'!$C$1","v":"DATE"},{"$f":"'Tableau de saisie'!$D$1","v":"CLASSE"},{"$f":"'Tableau de saisie'!$E$1","v":"CLASSE abr"},{"$f":"'Tableau de saisie'!$F$1","v":"CATEGORIE"},{"$f":"'Tableau de saisie'!$G$1","v":"CATEGORIE abr"},{"$f":"'Tableau de saisie'!$H$1","v":"AFFIXE"},{"$f":"'Tableau de saisie'!$I$1","v":"NOM"},{"$f":"'Tableau de saisie'!$J$1","v":"SEXE"},{"$f":"'Tableau de saisie'!$K$1","v":"DATE DE NAISSANCE"},{"$f":"'Tableau de saisie'!$L$1","v":"Complet"},{"$f":"'Tableau de saisie'!$M$1","v":"Année"},{"$f":"'Tableau de saisie'!$N$1","v":"Mois"},{"$f":"'Tableau de saisie'!$O$1","v":"Jours"},{"$f":"'Tableau de saisie'!$P$1","v":"Semaine"},{"$f":"'Tableau de saisie'!$Q$1","v":"TYPE DE POIL"},{"$f":"'Tableau de saisie'!$R$1","v":"MARQUAGE"},{"$f":"'Tableau de saisie'!$S$1","v":"COULEUR"},{"$f":"'Tableau de saisie'!$T$1","v":"TYPE D'OREILLES"},{"$f":"'Tableau de saisie'!$U$1","v":"PÈRE"},{"$f":"'Tableau de saisie'!$V$1","v":"MERE"},{"$f":"'Tableau de saisie'!$W$1","v":"PROVENANCE"},{"$f":"'Tableau de saisie'!$X$1","v":"PROPRIETAIRE"}]
[null,null,null,null,null,null,null,"Devil",null,null,"NJF",{"$f":"Lieu","v":"Paris"},{"$f":"Dateshow","v":"2018-01-28"},null,"N",null,"JF"]
[null,null,null,null,null,null,null,"Double bleu",null,null,"Feuille",{"$f":"'Tableau de saisie'!$B$1","v":"LIEU"},{"$f":"'Tableau de saisie'!$C$1","v":"DATE"},{"$f":"'Tableau de saisie'!$D$1","v":"CLASSE"},{"$f":"'Tableau de saisie'!$E$1","v":"CLASSE abr"},{"$f":"'Tableau de saisie'!$F$1","v":"CATEGORIE"},{"$f":"'Tableau de saisie'!$G$1","v":"CATEGORIE abr"},{"$f":"'Tableau de saisie'!$H$1","v":"AFFIXE"},{"$f":"'Tableau de saisie'!$I$1","v":"NOM"},{"$f":"'Tableau de saisie'!$J$1","v":"SEXE"},{"$f":"'Tableau de saisie'!$K$1","v":"DATE DE NAISSANCE"},{"$f":"'Tableau de saisie'!$L$1","v":"Complet"},{"$f":"'Tableau de saisie'!$M$1","v":"Année"},{"$f":"'Tableau de saisie'!$N$1","v":"Mois"},{"$f":"'Tableau de saisie'!$O$1","v":"Jours"},{"$f":"'Tableau de saisie'!$P$1","v":"Semaine"},{"$f":"'Tableau de saisie'!$Q$1","v":"TYPE DE POIL"},{"$f":"'Tableau de saisie'!$R$1","v":"MARQUAGE"},{"$f":"'Tableau de saisie'!$S$1","v":"COULEUR"},{"$f":"'Tableau de saisie'!$T$1","v":"TYPE D'OREILLES"},{"$f":"'Tableau de saisie'!$U$1","v":"PÈRE"},{"$f":"'Tableau de saisie'!$V$1","v":"MERE"},{"$f":"'Tableau de saisie'!$W$1","v":"PROVENANCE"},{"$f":"'Tableau de saisie'!$X$1","v":"PROPRIETAIRE"}]
[null,null,null,null,null,null,null,"Dove",null,null,"NJM",{"$f":"Lieu","v":"Paris"},{"$f":"Dateshow","v":"2018-01-28"},null,"N",null,"JM"]
[null,null,null,null,null,null,null,"Himalayen",null,null,"Feuille",{"$f":"'Tableau de saisie'!$B$1","v":"LIEU"},{"$f":"'Tableau de saisie'!$C$1","v":"DATE"},{"$f":"'Tableau de saisie'!$D$1","v":"CLASSE"},{"$f":"'Tableau de saisie'!$E$1","v":"CLASSE abr"},{"$f":"'Tableau de saisie'!$F$1","v":"CATEGORIE"},{"$f":"'Tableau de saisie'!$G$1","v":"CATEGORIE abr"},{"$f":"'Tableau de saisie'!$H$1","v":"AFFIXE"},{"$f":"'Tableau de saisie'!$I$1","v":"NOM"},{"$f":"'Tableau de saisie'!$J$1","v":"SEXE"},{"$f":"'Tableau de saisie'!$K$1","v":"DATE DE NAISSANCE"},{"$f":"'Tableau de saisie'!$L$1","v":"Complet"},{"$f":"'Tableau de saisie'!$M$1","v":"Année"},{"$f":"'Tableau de saisie'!$N$1","v":"Mois"},{"$f":"'Tableau de saisie'!$O$1","v":"Jours"},{"$f":"'Tableau de saisie'!$P$1","v":"Semaine"},{"$f":"'Tableau de saisie'!$Q$1","v":"TYPE DE POIL"},{"$f":"'Tableau de saisie'!$R$1","v":"MARQUAGE"},{"$f":"'Tableau de saisie'!$S$1","v":"COULEUR"},{"$f":"'Tableau de saisie'!$T$1","v":"TYPE D'OREILLES"},{"$f":"'Tableau de saisie'!$U$1","v":"PÈRE"},{"$f":"'Tableau de saisie'!$V$1","v":"MERE"},{"$f":"'Tableau de saisie'!$W$1","v":"PROVENANCE"},{"$f":"'Tableau de saisie'!$X$1","v":"PROPRIETAIRE"}]
[null,null,null,null,null,null,null,"Lavande",null,null,"NSF",{"$f":"Lieu","v":"Paris"},{"$f":"Dateshow","v":"2018-01-28"},null,"N",null,"SF"]
[null,null,null,null,null,null,null,"Mink ou Mock",null,null,"Feuille",{"$f":"'Tableau de saisie'!$B$1","v":"LIEU"},{"$f":"'Tableau de saisie'!$C$1","v":"DATE"},{"$f":"'Tableau de saisie'!$D$1","v":"CLASSE"},{"$f":"'Tableau de saisie'!$E$1","v":"CLASSE abr"},{"$f":"'Tableau de saisie'!$F$1","v":"CATEGORIE"},{"$f":"'Tableau de saisie'!$G$1","v":"CATEGORIE abr"},{"$f":"'Tableau de saisie'!$H$1","v":"AFFIXE"},{"$f":"'Tableau de saisie'!$I$1","v":"NOM"},{"$f":"'Tableau de saisie'!$J$1","v":"SEXE"},{"$f":"'Tableau de saisie'!$K$1","v":"DATE DE NAISSANCE"},{"$f":"'Tableau de saisie'!$L$1","v":"Complet"},{"$f":"'Tableau de saisie'!$M$1","v":"Année"},{"$f":"'Tableau de saisie'!$N$1","v":"Mois"},{"$f":"'Tableau de saisie'!$O$1","v":"Jours"},{"$f":"'Tableau de saisie'!$P$1","v":"Semaine"},{"$f":"'Tableau de saisie'!$Q$1","v":"TYPE DE POIL"},{"$f":"'Tableau de saisie'!$R$1","v":"MARQUAGE"},{"$f":"'Tableau de saisie'!$S$1","v":"COULEUR"},{"$f":"'Tableau de saisie'!$T$1","v":"TYPE D'OREILLES"},{"$f":"'Tableau de saisie'!$U$1","v":"PÈRE"},{"$f":"'Tableau de saisie'!$V$1","v":"MERE"},{"$f":"'Tableau de saisie'!$W$1","v":"PROVENANCE"},{"$f":"'Tableau de saisie'!$X$1","v":"PROPRIETAIRE"}]
[null,null,null,null,null,null,null,"Noir",null,null,"NSM",{"$f":"Lieu","v":"Paris"},{"$f":"Dateshow","v":"2018-01-28"},null,"N",null,"SM"]
[null,null,null,null,null,null,null,"Platine",null,null,"Feuille",{"$f":"'Tableau de saisie'!$B$1","v":"LIEU"},{"$f":"'Tableau de saisie'!$C$1","v":"DATE"},{"$f":"'Tableau de saisie'!$D$1","v":"CLASSE"},{"$f":"'Tableau de saisie'!$E$1","v":"CLASSE abr"},{"$f":"'Tableau de saisie'!$F$1","v":"CATEGORIE"},{"$f":"'Tableau de saisie'!$G$1","v":"CATEGORIE abr"},{"$f":"'Tableau de saisie'!$H$1","v":"AFFIXE"},{"$f":"'Tableau de saisie'!$I$1","v":"NOM"},{"$f":"'Tableau de saisie'!$J$1","v":"SEXE"},{"$f":"'Tableau de saisie'!$K$1","v":"DATE DE NAISSANCE"},{"$f":"'Tableau de saisie'!$L$1","v":"Complet"},{"$f":"'Tableau de saisie'!$M$1","v":"Année"},{"$f":"'Tableau de saisie'!$N$1","v":"Mois"},{"$f":"'Tableau de saisie'!$O$1","v":"Jours"},{"$f":"'Tableau de saisie'!$P$1","v":"Semaine"},{"$f":"'Tableau de saisie'!$Q$1","v":"TYPE DE POIL"},{"$f":"'Tableau de saisie'!$R$1","v":"MARQUAGE"},{"$f":"'Tableau de saisie'!$S$1","v":"COULEUR"},{"$f":"'Tableau de saisie'!$T$1","v":"TYPE D'OREILLES"},{"$f":"'Tableau de saisie'!$U$1","v":"PÈRE"},{"$f":"'Tableau de saisie'!$V$1","v":"MERE"},{"$f":"'Tableau de saisie'!$W$1","v":"PROVENANCE"},{"$f":"'Tableau de saisie'!$X$1","v":"PROPRIETAIRE"}]
[null,null,null,null,null,null,null,"Siamois",null,null,"NVF",{"$f":"Lieu","v":"Paris"},{"$f":"Dateshow","v":"2018-01-28"},null,"N",null,"VF"]
[null,null,null,null,null,null,null,"Topaze",null,null,"Feuille",{"$f":"'Tableau de saisie'!$B$1","v":"LIEU"},{"$f":"'Tableau de saisie'!$C$1","v":"DATE"},{"$f":"'Tableau de saisie'!$D$1","v":"CLASSE"},{"$f":"'Tableau de saisie'!$E$1","v":"CLASSE abr"},{"$f":"'Tableau de saisie'!$F$1","v":"CATEGORIE"},{"$f":"'Tableau de saisie'!$G$1","v":"CATEGORIE abr"},{"$f":"'Tableau de saisie'!$H$1","v":"AFFIXE"},{"$f":"'Tableau de saisie'!$I$1","v":"NOM"},{"$f":"'Tableau de saisie'!$J$1","v":"SEXE"},{"$f":"'Tableau de saisie'!$K$1","v":"DATE DE NAISSANCE"},{"$f":"'Tableau de saisie'!$L$1","v":"Complet"},{"$f":"'Tableau de saisie'!$M$1","v":"Année"},{"$f":"'Tableau de saisie'!$N$1","v":"Mois"},{"$f":"'Tableau de saisie'!$O$1","v":"Jours"},{"$f":"'Tableau de saisie'!$P$1","v":"Semaine"},{"$f":"'Tableau de saisie'!$Q$1","v":"TYPE DE POIL"},{"$f":"'Tableau de saisie'!$R$1","v":"MARQUAGE"},{"$f":"'Tableau de saisie'!$S$1","v":"COULEUR"},{"$f":"'Tableau de saisie'!$T$1","v":"TYPE D'OREILLES"},{"$f":"'Tableau de saisie'!$U$1","v":"PÈRE"},{"$f":"'Tableau de saisie'!$V$1","v":"MERE"},{"$f":"'Tableau de saisie'!$W$1","v":"PROVENANCE"},{"$f":"'Tableau de saisie'!$X$1","v":"PROPRIETAIRE"}]
[null,null,null,null,null,null,null,null,null,null,"NVM",{"$f":"Lieu","v":"Paris"},{"$f":"Dateshow","v":"2018-01-28"},null,"N",null,"VM"]
[null,null,null,null,null,null,null,null,null,null,"Feuille",{"$f":"'Tableau de saisie'!$B$1","v":"LIEU"},{"$f":"'Tableau de saisie'!$C$1","v":"DATE"},{"$f":"'Tableau de saisie'!$D$1","v":"CLASSE"},{"$f":"'Tableau de saisie'!$E$1","v":"CLASSE abr"},{"$f":"'Tableau de saisie'!$F$1","v":"CATEGORIE"},{"$f":"'Tableau de saisie'!$G$1","v":"CATEGORIE abr"},{"$f":"'Tableau de saisie'!$H$1","v":"AFFIXE"},{"$f":"'Tableau de saisie'!$I$1","v":"NOM"},{"$f":"'Tableau de saisie'!$J$1","v":"SEXE"},{"$f":"'Tableau de saisie'!$K$1","v":"DATE DE NAISSANCE"},{"$f":"'Tableau de saisie'!$L$1","v":"Complet"},{"$f":"'Tableau de saisie'!$M$1","v":"Année"},{"$f":"'Tableau de saisie'!$N$1","v":"Mois"},{"$f":"'Tableau de saisie'!$O$1","v":"Jours"},{"$f":"'Tableau de saisie'!$P$1","v":"Semaine"},{"$f":"'Tableau de saisie'!$Q$1","v":"TYPE DE POIL"},{"$f":"'Tableau de saisie'!$R$1","v":"MARQUAGE"},{"$f":"'Tableau de saisie'!$S$1","v":"COULEUR"},{"$f":"'Tableau de saisie'!$T$1","v":"TYPE D'OREILLES"},{"$f":"'Tableau de saisie'!$U$1","v":"PÈRE"},{"$f":"'Tableau de saisie'!$V$1","v":"MERE"},{"$f":"'Tableau de saisie'!$W$1","v":"PROVENANCE"},{"$f":"'Tableau de saisie'!$X$1","v":"PROPRIETAIRE"}]
[null,null,null,null,null,null,null,null,null,null,"PJF",{"$f":"Lieu","v":"Paris"},{"$f":"Dateshow","v":"2018-01-28"},null,"P",null,"JF"]
[null,null,null,null,null,null,null,null,null,null,"Feuille",{"$f":"'Tableau de saisie'!$B$1","v":"LIEU"},{"$f":"'Tableau de saisie'!$C$1","v":"DATE"},{"$f":"'Tableau de saisie'!$D$1","v":"CLASSE"},{"$f":"'Tableau de saisie'!$E$1","v":"CLASSE abr"},{"$f":"'Tableau de saisie'!$F$1","v":"CATEGORIE"},{"$f":"'Tableau de saisie'!$G$1","v":"CATEGORIE abr"},{"$f":"'Tableau de saisie'!$H$1","v":"AFFIXE"},{"$f":"'Tableau de saisie'!$I$1","v":"NOM"},{"$f":"'Tableau de saisie'!$J$1","v":"SEXE"},{"$f":"'Tableau de saisie'!$K$1","v":"DATE DE NAISSANCE"},{"$f":"'Tableau de saisie'!$L$1","v":"Complet"},{"$f":"'Tableau de saisie'!$M$1","v":"Année"},{"$f":"'Tableau de saisie'!$N$1","v":"Mois"},{"$f":"'Tableau de saisie'!$O$1","v":"Jours"},{"$f":"'Tableau de saisie'!$P$1","v":"Semaine"},{"$f":"'Tableau de saisie'!$Q$1","v":"TYPE DE POIL"},{"$f":"'Tableau de saisie'!$R$1","v":"MARQUAGE"},{"$f":"'Tableau de saisie'!$S$1","v":"COULEUR"},{"$f":"'Tableau de saisie'!$T$1","v":"TYPE D'OREILLES"},{"$f":"'Tableau de saisie'!$U$1","v":"PÈRE"},{"$f":"'Tableau de saisie'!$V$1","v":"MERE"},{"$f":"'Tableau de saisie'!$W$1","v":"PROVENANCE"},{"$f":"'Tableau de saisie'!$X$1","v":"PROPRIETAIRE"}]
[null,null,null,null,null,null,null,null,null,null,"PJM",{"$f":"Lieu","v":"Paris"},{"$f":"Dateshow","v":"2018-01-28"},null,"P",null,"JM"]
[null,null,null,null,null,null,null,null,null,null,"Feuille",{"$f":"'Tableau de saisie'!$B$1","v":"LIEU"},{"$f":"'Tableau de saisie'!$C$1","v":"DATE"},{"$f":"'Tableau de saisie'!$D$1","v":"CLASSE"},{"$f":"'Tableau de saisie'!$E$1","v":"CLASSE abr"},{"$f":"'Tableau de saisie'!$F$1","v":"CATEGORIE"},{"$f":"'Tableau de saisie'!$G$1","v":"CATEGORIE abr"},{"$f":"'Tableau de saisie'!$H$1","v":"AFFIXE"},{"$f":"'Tableau de saisie'!$I$1","v":"NOM"},{"$f":"'Tableau de saisie'!$J$1","v":"SEXE"},{"$f":"'Tableau de saisie'!$K$1","v":"DATE DE NAISSANCE"},{"$f":"'Tableau de saisie'!$L$1","v":"Complet"},{"$f":"'Tableau de saisie'!$M$1","v":"Année"},{"$f":"'Tableau de saisie'!$N$1","v":"Mois"},{"$f":"'Tableau de saisie'!$O$1","v":"Jours"},{"$f":"'Tableau de saisie'!$P$1","v":"Semaine"},{"$f":"'Tableau de saisie'!$Q$1","v":"TYPE DE POIL"},{"$f":"'Tableau de saisie'!$R$1","v":"MARQUAGE"},{"$f":"'Tableau de saisie'!$S$1","v":"COULEUR"},{"$f":"'Tableau de saisie'!$T$1","v":"TYPE D'OREILLES"},{"$f":"'Tableau de saisie'!$U$1","v":"PÈRE"},{"$f":"'Tableau de saisie'!$V$1","v":"MERE"},{"$f":"'Tableau de saisie'!$W$1","v":"PROVENANCE"},{"$f":"'Tableau de saisie'!$X$1","v":"PROPRIETAIRE"}]
[null,null,null,null,null,null,null,null,null,null,"PSF",{"$f":"Lieu","v":"Paris"},{"$f":"Dateshow","v":"2018-01-28"},null,"P",null,"SF"]
[null,null,null,null,null,null,null,null,null,null,"Feuille",{"$f":"'Tableau de saisie'!$B$1","v":"LIEU"},{"$f":"'Tableau de saisie'!$C$1","v":"DATE"},{"$f":"'Tableau de saisie'!$D$1","v":"CLASSE"},{"$f":"'Tableau de saisie'!$E$1","v":"CLASSE abr"},{"$f":"'Tableau de saisie'!$F$1","v":"CATEGORIE"},{"$f":"'Tableau de saisie'!$G$1","v":"CATEGORIE abr"},{"$f":"'Tableau de saisie'!$H$1","v":"AFFIXE"},{"$f":"'Tableau de saisie'!$I$1","v":"NOM"},{"$f":"'Tableau de saisie'!$J$1","v":"SEXE"},{"$f":"'Tableau de saisie'!$K$1","v":"DATE DE NAISSANCE"},{"$f":"'Tableau de saisie'!$L$1","v":"Complet"},{"$f":"'Tableau de saisie'!$M$1","v":"Année"},{"$f":"'Tableau de saisie'!$N$1","v":"Mois"},{"$f":"'Tableau de saisie'!$O$1","v":"Jours"},{"$f":"'Tableau de saisie'!$P$1","v":"Semaine"},{"$f":"'Tableau de saisie'!$Q$1","v":"TYPE DE POIL"},{"$f":"'Tableau de saisie'!$R$1","v":"MARQUAGE"},{"$f":"'Tableau de saisie'!$S$1","v":"COULEUR"},{"$f":"'Tableau de saisie'!$T$1","v":"TYPE D'OREILLES"},{"$f":"'Tableau de saisie'!$U$1","v":"PÈRE"},{"$f":"'Tableau de saisie'!$V$1","v":"MERE"},{"$f":"'Tableau de saisie'!$W$1","v":"PROVENANCE"},{"$f":"'Tableau de saisie'!$X$1","v":"PROPRIETAIRE"}]
[null,null,null,null,null,null,null,null,null,null,"PSM",{"$f":"Lieu","v":"Paris"},{"$f":"Dateshow","v":"2018-01-28"},null,"P",null,"SM"]
[null,null,null,null,null,null,null,null,null,null,"Feuille",{"$f":"'Tableau de saisie'!$B$1","v":"LIEU"},{"$f":"'Tableau de saisie'!$C$1","v":"DATE"},{"$f":"'Tableau de saisie'!$D$1","v":"CLASSE"},{"$f":"'Tableau de saisie'!$E$1","v":"CLASSE abr"},{"$f":"'Tableau de saisie'!$F$1","v":"CATEGORIE"},{"$f":"'Tableau de saisie'!$G$1","v":"CATEGORIE abr"},{"$f":"'Tableau de saisie'!$H$1","v":"AFFIXE"},{"$f":"'Tableau de saisie'!$I$1","v":"NOM"},{"$f":"'Tableau de saisie'!$J$1","v":"SEXE"},{"$f":"'Tableau de saisie'!$K$1","v":"DATE DE NAISSANCE"},{"$f":"'Tableau de saisie'!$L$1","v":"Complet"},{"$f":"'Tableau de saisie'!$M$1","v":"Année"},{"$f":"'Tableau de saisie'!$N$1","v":"Mois"},{"$f":"'Tableau de saisie'!$O$1","v":"Jours"},{"$f":"'Tableau de saisie'!$P$1","v":"Semaine"},{"$f":"'Tableau de saisie'!$Q$1","v":"TYPE DE POIL"},{"$f":"'Tableau de saisie'!$R$1","v":"MARQUAGE"},{"$f":"'Tableau de saisie'!$S$1","v":"COULEUR"},{"$f":"'Tableau de saisie'!$T$1","v":"TYPE D'OREILLES"},{"$f":"'Tableau de saisie'!$U$1","v":"PÈRE"},{"$f":"'Tableau de saisie'!$V$1","v":"MERE"},{"$f":"'Tableau de saisie'!$W$1","v":"PROVENANCE"},{"$f":"'Tableau de saisie'!$X$1","v":"PROPRIETAIRE"}]
[null,null,null,null,null,null,null,null,null,null,"PVF",{"$f":"Lieu","v":"Paris"},{"$f":"Dateshow","v":"2018-01-28"},null,"P",null,"VF"]
[null,null,null,null,null,null,null,null,null,null,"Feuille",{"$f":"'Tableau de saisie'!$B$1","v":"LIEU"},{"$f":"'Tableau de saisie'!$C$1","v":"DATE"},{"$f":"'Tableau de saisie'!$D$1","v":"CLASSE"},{"$f":"'Tableau de saisie'!$E$1","v":"CLASSE abr"},{"$f":"'Tableau de saisie'!$F$1","v":"CATEGORIE"},{"$f":"'Tableau de saisie'!$G$1","v":"CATEGORIE abr"},{"$f":"'Tableau de saisie'!$H$1","v":"AFFIXE"},{"$f":"'Tableau de saisie'!$I$1","v":"NOM"},{"$f":"'Tableau de saisie'!$J$1","v":"SEXE"},{"$f":"'Tableau de saisie'!$K$1","v":"DATE DE NAISSANCE"},{"$f":"'Tableau de saisie'!$L$1","v":"Complet"},{"$f":"'Tableau de saisie'!$M$1","v":"Année"},{"$f":"'Tableau de saisie'!$N$1","v":"Mois"},{"$f":"'Tableau de saisie'!$O$1","v":"Jours"},{"$f":"'Tableau de saisie'!$P$1","v":"Semaine"},{"$f":"'Tableau de saisie'!$Q$1","v":"TYPE DE POIL"},{"$f":"'Tableau de saisie'!$R$1","v":"MARQUAGE"},{"$f":"'Tableau de saisie'!$S$1","v":"COULEUR"},{"$f":"'Tableau de saisie'!$T$1","v":"TYPE D'OREILLES"},{"$f":"'Tableau de saisie'!$U$1","v":"PÈRE"},{"$f":"'Tableau de saisie'!$V$1","v":"MERE"},{"$f":"'Tableau de saisie'!$W$1","v":"PROVENANCE"},{"$f":"'Tableau de saisie'!$X$1","v":"PROPRIETAIRE"}]
[null,null,null,null,null,null,null,null,null,null,"PVM",{"$f":"Lieu","v":"Paris"},{"$f":"Dateshow","v":"2018-01-28"},null,"P",null,"VM"]
[null,null,null,null,null,null,null,null,null,null,"Feuille",{"$f":"'Tableau de saisie'!$B$1","v":"LIEU"},{"$f":"'Tableau de saisie'!$C$1","v":"DATE"},{"$f":"'Tableau de saisie'!$D$1","v":"CLASSE"},{"$f":"'Tableau de saisie'!$E$1","v":"CLASSE abr"},{"$f":"'Tableau de saisie'!$F$1","v":"CATEGORIE"},{"$f":"'Tableau de saisie'!$G$1","v":"CATEGORIE abr"},{"$f":"'Tableau de saisie'!$H$1","v":"AFFIXE"},{"$f":"'Tableau de saisie'!$I$1","v":"NOM"},{"$f":"'Tableau de saisie'!$J$1","v":"SEXE"},{"$f":"'Tableau de saisie'!$K$1","v":"DATE DE NAISSANCE"},{"$f":"'Tableau de saisie'!$L$1","v":"Complet"},{"$f":"'Tableau de saisie'!$M$1","v":"Année"},{"$f":"'Tableau de saisie'!$N$1","v":"Mois"},{"$f":"'Tableau de saisie'!$O$1","v":"Jours"},{"$f":"'Tableau de saisie'!$P$1","v":"Semaine"},{"$f":"'Tableau de saisie'!$Q$1","v":"TYPE DE POIL"},{"$f":"'Tableau de saisie'!$R$1","v":"MARQUAGE"},{"$f":"'Tableau de saisie'!$S$1","v":"COULEUR"},{"$f":"'Tableau de saisie'!$T$1","v":"TYPE D'OREILLES"},{"$f":"'Tableau de saisie'!$U$1","v":"PÈRE"},{"$f":"'Tableau de saisie'!$V$1","v":"MERE"},{"$f":"'Tableau de saisie'!$W$1","v":"PROVENANCE"},{"$f":"'Tableau de saisie'!$X$1","v":"PROPRIETAIRE"}]
[null,null,null,null,null,null,null,null,null,null,"AJF",{"$f":"Lieu","v":"Paris"},{"$f":"Dateshow","v":"2018-01-28"},null,"A",null,"JF"]
[null,null,null,null,null,null,null,null,null,null,"Feuille",{"$f":"'Tableau de saisie'!$B$1","v":"LIEU"},{"$f":"'Tableau de saisie'!$C$1","v":"DATE"},{"$f":"'Tableau de saisie'!$D$1","v":"CLASSE"},{"$f":"'Tableau de saisie'!$E$1","v":"CLASSE abr"},{"$f":"'Tableau de saisie'!$F$1","v":"CATEGORIE"},{"$f":"'Tableau de saisie'!$G$1","v":"CATEGORIE abr"},{"$f":"'Tableau de saisie'!$H$1","v":"AFFIXE"},{"$f":"'Tableau de saisie'!$I$1","v":"NOM"},{"$f":"'Tableau de saisie'!$J$1","v":"SEXE"},{"$f":"'Tableau de saisie'!$K$1","v":"DATE DE NAISSANCE"},{"$f":"'Tableau de saisie'!$L$1","v":"Complet"},{"$f":"'Tableau de saisie'!$M$1","v":"Année"},{"$f":"'Tableau de saisie'!$N$1","v":"Mois"},{"$f":"'Tableau de saisie'!$O$1","v":"Jours"},{"$f":"'Tableau de saisie'!$P$1","v":"Semaine"},{"$f":"'Tableau de saisie'!$Q$1","v":"TYPE DE POIL"},{"$f":"'Tableau de saisie'!$R$1","v":"MARQUAGE"},{"$f":"'Tableau de saisie'!$S$1","v":"COULEUR"},{"$f":"'Tableau de saisie'!$T$1","v":"TYPE D'OREILLES"},{"$f":"'Tableau de saisie'!$U$1","v":"PÈRE"},{"$f":"'Tableau de saisie'!$V$1","v":"MERE"},{"$f":"'Tableau de saisie'!$W$1","v":"PROVENANCE"},{"$f":"'Tableau de saisie'!$X$1","v":"PROPRIETAIRE"}]
[null,null,null,null,null,null,null,null,null,null,"AJM",{"$f":"Lieu","v":"Paris"},{"$f":"Dateshow","v":"2018-01-28"},null,"A",null,"JM"]
[null,null,null,null,null,null,null,null,null,null,"Feuille",{"$f":"'Tableau de saisie'!$B$1","v":"LIEU"},{"$f":"'Tableau de saisie'!$C$1","v":"DATE"},{"$f":"'Tableau de saisie'!$D$1","v":"CLASSE"},{"$f":"'Tableau de saisie'!$E$1","v":"CLASSE abr"},{"$f":"'Tableau de saisie'!$F$1","v":"CATEGORIE"},{"$f":"'Tableau de saisie'!$G$1","v":"CATEGORIE abr"},{"$f":"'Tableau de saisie'!$H$1","v":"AFFIXE"},{"$f":"'Tableau de saisie'!$I$1","v":"NOM"},{"$f":"'Tableau de saisie'!$J$1","v":"SEXE"},{"$f":"'Tableau de saisie'!$K$1","v":"DATE DE NAISSANCE"},{"$f":"'Tableau de saisie'!$L$1","v":"Complet"},{"$f":"'Tableau de saisie'!$M$1","v":"Année"},{"$f":"'Tableau de saisie'!$N$1","v":"Mois"},{"$f":"'Tableau de saisie'!$O$1","v":"Jours"},{"$f":"'Tableau de saisie'!$P$1","v":"Semaine"},{"$f":"'Tableau de saisie'!$Q$1","v":"TYPE DE POIL"},{"$f":"'Tableau de saisie'!$R$1","v":"MARQUAGE"},{"$f":"'Tableau de saisie'!$S$1","v":"COULEUR"},{"$f":"'Tableau de saisie'!$T$1","v":"TYPE D'OREILLES"},{"$f":"'Tableau de saisie'!$U$1","v":"PÈRE"},{"$f":"'Tableau de saisie'!$V$1","v":"MERE"},{"$f":"'Tableau de saisie'!$W$1","v":"PROVENANCE"},{"$f":"'Tableau de saisie'!$X$1","v":"PROPRIETAIRE"}]
[null,null,null,null,null,null,null,null,null,null,"ASF",{"$f":"Lieu","v":"Paris"},{"$f":"Dateshow","v":"2018-01-28"},null,"A",null,"SF"]
[null,null,null,null,null,null,null,null,null,null,"Feuille",{"$f":"'Tableau de saisie'!$B$1","v":"LIEU"},{"$f":"'Tableau de saisie'!$C$1","v":"DATE"},{"$f":"'Tableau de saisie'!$D$1","v":"CLASSE"},{"$f":"'Tableau de saisie'!$E$1","v":"CLASSE abr"},{"$f":"'Tableau de saisie'!$F$1","v":"CATEGORIE"},{"$f":"'Tableau de saisie'!$G$1","v":"CATEGORIE abr"},{"$f":"'Tableau de saisie'!$H$1","v":"AFFIXE"},{"$f":"'Tableau de saisie'!$I$1","v":"NOM"},{"$f":"'Tableau de saisie'!$J$1","v":"SEXE"},{"$f":"'Tableau de saisie'!$K$1","v":"DATE DE NAISSANCE"},{"$f":"'Tableau de saisie'!$L$1","v":"Complet"},{"$f":"'Tableau de saisie'!$M$1","v":"Année"},{"$f":"'Tableau de saisie'!$N$1","v":"Mois"},{"$f":"'Tableau de saisie'!$O$1","v":"Jours"},{"$f":"'Tableau de saisie'!$P$1","v":"Semaine"},{"$f":"'Tableau de saisie'!$Q$1","v":"TYPE DE POIL"},{"$f":"'Tableau de saisie'!$R$1","v":"MARQUAGE"},{"$f":"'Tableau de saisie'!$S$1","v":"COULEUR"},{"$f":"'Tableau de saisie'!$T$1","v":"TYPE D'OREILLES"},{"$f":"'Tableau de saisie'!$U$1","v":"PÈRE"},{"$f":"'Tableau de saisie'!$V$1","v":"MERE"},{"$f":"'Tableau de saisie'!$W$1","v":"PROVENANCE"},{"$f":"'Tableau de saisie'!$X$1","v":"PROPRIETAIRE"}]
[null,null,null,null,null,null,null,null,null,null,"ASM",{"$f":"Lieu","v":"Paris"},{"$f":"Dateshow","v":"2018-01-28"},null,"A",null,"SM"]
[null,null,null,null,null,null,null,null,null,null,"Feuille",{"$f":"'Tableau de saisie'!$B$1","v":"LIEU"},{"$f":"'Tableau de saisie'!$C$1","v":"DATE"},{"$f":"'Tableau de saisie'!$D$1","v":"CLASSE"},{"$f":"'Tableau de saisie'!$E$1","v":"CLASSE abr"},{"$f":"'Tableau de saisie'!$F$1","v":"CATEGORIE"},{"$f":"'Tableau de saisie'!$G$1","v":"CATEGORIE abr"},{"$f":"'Tableau de saisie'!$H$1","v":"AFFIXE"},{"$f":"'Tableau de saisie'!$I$1","v":"NOM"},{"$f":"'Tableau de saisie'!$J$1","v":"SEXE"},{"$f":"'Tableau de saisie'!$K$1","v":"DATE DE NAISSANCE"},{"$f":"'Tableau de saisie'!$L$1","v":"Complet"},{"$f":"'Tableau de saisie'!$M$1","v":"Année"},{"$f":"'Tableau de saisie'!$N$1","v":"Mois"},{"$f":"'Tableau de saisie'!$O$1","v":"Jours"},{"$f":"'Tableau de saisie'!$P$1","v":"Semaine"},{"$f":"'Tableau de saisie'!$Q$1","v":"TYPE DE POIL"},{"$f":"'Tableau de saisie'!$R$1","v":"MARQUAGE"},{"$f":"'Tableau de saisie'!$S$1","v":"COULEUR"},{"$f":"'Tableau de saisie'!$T$1","v":"TYPE D'OREILLES"},{"$f":"'Tableau de saisie'!$U$1","v":"PÈRE"},{"$f":"'Tableau de saisie'!$V$1","v":"MERE"},{"$f":"'Tableau de saisie'!$W$1","v":"PROVENANCE"},{"$f":"'Tableau de saisie'!$X$1","v":"PROPRIETAIRE"}]
[null,null,null,null,null,null,null,null,null,null,"AVF",{"$f":"Lieu","v":"Paris"},{"$f":"Dateshow","v":"2018-01-28"},null,"A",null,"VF"]
[null,null,null,null,null,null,null,null,null,null,"Feuille",{"$f":"'Tableau de saisie'!$B$1","v":"LIEU"},{"$f":"'Tableau de saisie'!$C$1","v":"DATE"},{"$f":"'Tableau de saisie'!$D$1","v":"CLASSE"},{"$f":"'Tableau de saisie'!$E$1","v":"CLASSE abr"},{"$f":"'Tableau de saisie'!$F$1","v":"CATEGORIE"},{"$f":"'Tableau de saisie'!$G$1","v":"CATEGORIE abr"},{"$f":"'Tableau de saisie'!$H$1","v":"AFFIXE"},{"$f":"'Tableau de saisie'!$I$1","v":"NOM"},{"$f":"'Tableau de saisie'!$J$1","v":"SEXE"},{"$f":"'Tableau de saisie'!$K$1","v":"DATE DE NAISSANCE"},{"$f":"'Tableau de saisie'!$L$1","v":"Complet"},{"$f":"'Tableau de saisie'!$M$1","v":"Année"},{"$f":"'Tableau de saisie'!$N$1","v":"Mois"},{"$f":"'Tableau de saisie'!$O$1","v":"Jours"},{"$f":"'Tableau de saisie'!$P$1","v":"Semaine"},{"$f":"'Tableau de saisie'!$Q$1","v":"TYPE DE POIL"},{"$f":"'Tableau de saisie'!$R$1","v":"MARQUAGE"},{"$f":"'Tableau de saisie'!$S$1","v":"COULEUR"},{"$f":"'Tableau de saisie'!$T$1","v":"TYPE D'OREILLES"},{"$f":"'Tableau de saisie'!$U$1","v":"PÈRE"},{"$f":"'Tableau de saisie'!$V$1","v":"MERE"},{"$f":"'Tableau de saisie'!$W$1","v":"PROVENANCE"},{"$f":"'Tableau de saisie'!$X$1","v":"PROPRIETAIRE"}]
[null,null,null,null,null,null,null,null,null,null,"AVM",{"$f":"Lieu","v":"Paris"},{"$f":"Dateshow","v":"2018-01-28"},null,"A",null,"VM"]